Workbook

Sheet AER CF (hidden)
B1: AER CONDITIONAL FORMATTING
B4: CONDITIONAL FORMATTING MAP
F5: =INDEX(dms_CF_3.6.1, MATCH(dms_TradingName,dms_CF_TradingName))="Y" | G5: =INDEX(dms_CF_3.6.5, MATCH(dms_TradingName,dms_CF_TradingName))="Y" | H5: =INDEX(dms_CF_3.6.6, MATCH(dms_TradingName,dms_CF_TradingName))="Y" | I5: =INDEX(dms_CF_3.6.7.1, MATCH(dms_TradingName,dms_CF_TradingName))="Y" | J5: =INDEX(dms_CF_3.6.7.2, MATCH(dms_TradingName,dms_CF_TradingName))="Y" | K5: =INDEX(dms_CF_3.6.7.3, MATCH(dms_TradingName,dms_CF_TradingName))="Y" | L5: =INDEX(dms_CF_3.6.7.4, MATCH(dms_TradingName,dms_CF_TradingName))="Y" | M5: =INDEX(dms_CF_3.6.8, MATCH(dms_TradingName,dms_CF_TradingName))="Y" | N5: =INDEX(dms_CF_4.1, MATCH(dms_TradingName,dms_CF_TradingName))="Y" | O5: =INDEX(dms_CF_6.6.1, MATCH(dms_TradingName,dms_CF_TradingName))="Y" | P5: =INDEX(dms_CF_6.8, MATCH(dms_TradingName,dms_CF_TradingName))="Y" | Q5: =INDEX(dms_CF_7.12, MATCH(dms_TradingName,dms_CF_TradingName))="Y" | R5: =INDEX(dms_CF_8.1_A, MATCH(dms_TradingName,dms_CF_TradingName))="Y" | S5: =INDEX(dms_CF_8.1_B, MATCH(dms_TradingName,dms_CF_TradingName))="Y" | T5: =INDEX(dms_CF_8.1_Neg, MATCH(dms_TradingName,dms_CF_TradingName))="Y" | U5: =INDEX(dms_CF_4.4.1_Neg, MATCH(dms_TradingName,dms_CF_TradingName))="Y"
B6: dms_CF_TradingName | C6: JurisdictionList | D6: Sector | E6: Segment | F6: dms_CF_3.6.1 | G6: dms_CF_3.6.5 | H6: dms_CF_3.6.6 | I6: dms_CF_3.6.7.1 | J6: dms_CF_3.6.7.2 | K6: dms_CF_3.6.7.3 | L6: dms_CF_3.6.7.4 | M6: dms_CF_3.6.8 | N6: dms_CF_4.1 | O6: dms_CF_6.6.1 | P6: dms_CF_6.8 | Q6: dms_CF_7.12 | R6: dms_CF_8.1_A | S6: dms_CF_8.1_B | T6: dms_CF_8.1_Neg | U6: dms_CF_4.4.1 | V6: dms_CF_MAIFI_flag | W6: Spare1 | X6: Spare2
B7: ActewAGL Distribution | C7: ACT | D7: Electricity | E7: Distribution | G7: Y | I7: Y | J7: Y | K7: N | L7: Y | M7: N | N7: Y | O7: N | P7: Y | Q7: Y | R7: N | S7: Y | T7: Y | U7: N | V7: N | W7: N | X7: N
B8: Ausgrid | C8: NSW | D8: Electricity | E8: Distribution | G8: Y | I8: N | J8: N | K8: N | L8: Y | M8: N | N8: Y | O8: N | P8: Y | Q8: Y | R8: N | S8: Y | T8: Y | U8: N | V8: N | W8: N | X8: N
B9: AusNet (D) | C9: Vic | D9: Electricity | E9: Distribution | G9: N | I9: N | J9: N | K9: N | L9: N | M9: N | N9: Y | O9: N | P9: Y | Q9: N | R9: N | S9: N | T9: Y | U9: N | V9: N | W9: N | X9: N
B10: AusNet (T) | C10: Vic | D10: Electricity | E10: Transmission | G10: N | I10: N | J10: N | K10: N | L10: N | M10: N | N10: Y | O10: N | P10: Y | Q10: N | R10: N | S10: N | T10: Y | U10: N | V10: N | W10: N | X10: N
B11: CitiPower | C11: Vic | D11: Electricity | E11: Distribution | G11: N | I11: N | J11: N | K11: N | L11: N | M11: N | N11: Y | O11: N | P11: Y | Q11: N | R11: N | S11: N | T11: Y | U11: N | V11: N | W11: N | X11: N
B12: Directlink | C12: Qld | D12: Electricity | E12: Transmission | G12: N | I12: N | J12: N | K12: N | L12: N | M12: N | N12: Y | O12: N | P12: Y | Q12: N | R12: N | S12: Y | T12: Y | U12: N | V12: N | W12: N | X12: N
B13: ElectraNet | C13: SA | D13: Electricity | E13: Transmission | G13: N | I13: N | J13: N | K13: N | L13: N | M13: N | N13: Y | O13: N | P13: Y | Q13: N | R13: N | S13: Y | T13: Y | U13: N | V13: N | W13: N | X13: N
B14: Endeavour Energy | C14: NSW | D14: Electricity | E14: Distribution | G14: Y | I14: N | J14: N | K14: N | L14: Y | M14: N | N14: Y | O14: N | P14: Y | Q14: Y | R14: N | S14: Y | T14: Y | U14: Y | V14: N | W14: N | X14: N
B15: Energex | C15: Qld | D15: Electricity | E15: Distribution | G15: Y | I15: N | J15: N | K15: N | L15: N | M15: N | N15: Y | O15: N | P15: Y | Q15: Y | R15: N | S15: Y | T15: Y | U15: Y | V15: N | W15: N | X15: N
B16: Ergon Energy | C16: Qld | D16: Electricity | E16: Distribution | G16: Y | I16: N | J16: N | K16: N | L16: N | M16: N | N16: Y | O16: N | P16: Y | Q16: Y | R16: N | S16: Y | T16: Y | U16: N | V16: N | W16: N | X16: N
B17: Essential Energy | C17: NSW | D17: Electricity | E17: Distribution | G17: Y | I17: N | J17: N | K17: N | L17: Y | M17: N | N17: Y | O17: N | P17: Y | Q17: Y | R17: N | S17: Y | T17: Y | U17: N | V17: N | W17: N | X17: N
B18: Jemena Electricity | C18: Vic | D18: Electricity | E18: Distribution | G18: N | I18: N | J18: N | K18: N | L18: N | M18: N | N18: Y | O18: N | P18: Y | Q18: N | R18: N | S18: N | T18: Y | U18: N | V18: N | W18: N | X18: N
B19: Murraylink | C19: SA | D19: Electricity | E19: Transmission | G19: N | I19: N | J19: N | K19: N | L19: N | M19: N | N19: Y | O19: N | P19: Y | Q19: N | R19: N | S19: Y | T19: Y | U19: N | V19: N | W19: N | X19: N
B20: Power and Water | C20: NT | D20: Electricity | E20: Distribution | G20: N | I20: N | J20: Y | K20: N | L20: N | M20: Y | N20: Y | O20: Y | P20: Y | Q20: Y | R20: N | S20: Y | T20: Y | U20: N | V20: N | W20: N | X20: N
B21: Powercor Australia | C21: Vic | D21: Electricity | E21: Distribution | G21: N | I21: N | J21: N | K21: N | L21: N | M21: N | N21: Y | O21: N | P21: Y | Q21: N | R21: N | S21: N | T21: Y | U21: N | V21: N | W21: N | X21: N
B22: Powerlink | C22: Qld | D22: Electricity | E22: Transmission | G22: N | I22: N | J22: N | K22: N | L22: N | M22: N | N22: Y | O22: N | P22: Y | Q22: N | R22: N | S22: Y | T22: Y | U22: N | V22: N | W22: N | X22: N
B23: SA Power Networks | C23: SA | D23: Electricity | E23: Distribution | G23: Y | I23: N | J23: N | K23: N | L23: N | M23: N | N23: Y | O23: N | P23: Y | Q23: Y | R23: Y | S23: Y | T23: N | U23: N | V23: N | W23: N | X23: N
B24: TasNetworks (D) | C24: Tas | D24: Electricity | E24: Distribution | G24: Y | I24: N | J24: N | K24: N | L24: N | M24: N | N24: Y | O24: N | P24: Y | Q24: Y | R24: N | S24: Y | T24: Y | U24: N | V24: N | W24: N | X24: N
B25: TasNetworks (T) | C25: Tas | D25: Electricity | E25: Transmission | G25: N | I25: N | J25: N | K25: N | L25: N | M25: N | N25: Y | O25: N | P25: Y | Q25: N | R25: N | S25: Y | T25: Y | U25: N | V25: N | W25: N | X25: N
B26: TransGrid | C26: NSW | D26: Electricity | E26: Transmission | G26: N | I26: N | J26: N | K26: N | L26: N | M26: N | N26: Y | O26: N | P26: Y | Q26: N | R26: N | S26: Y | T26: Y | U26: N | V26: N | W26: N | X26: N
B27: United Energy | C27: Vic | D27: Electricity | E27: Distribution | G27: N | I27: N | J27: N | K27: N | L27: N | M27: N | N27: Y | O27: N | P27: Y | Q27: N | R27: N | S27: N | T27: Y | U27: N | V27: N | W27: N | X27: N
B30: Confidential
B31: Amended
B33: Worksheet 6.2 STPIS reliability
B34: Formula | F34: Applied to:
B36: =INDEX(dms_CBD_flag,MATCH(dms_TradingName,dms_TradingName_List))="NO" | F36: $D$11,$D$17,$D$23,$D$33,$D$39,$D$45,$D$55,$D$61,$D$67,$D$77,$D$83,$D$89
B37: =INDEX(dms_Urban_flag,MATCH(dms_TradingName,dms_TradingName_List))="NO" | F37: $D$12,$D$18,$D$24,$D$56,$D$62,$D$78,$D$68,$D$84
B38: =INDEX(dms_ShortRural_flag,MATCH(dms_TradingName,dms_TradingName_List))="NO" | F38: $D$13,$D$19,$D$25,$D$57,$D$63,$D$69,$D$79,$D$85
B39: =INDEX(dms_LongRural_flag,MATCH(dms_TradingName,dms_TradingName_List))="NO" | F39: $D$14,$D$20,$D$26,$D$58,$D$64,$D$65,$D$70,$D$71,$D$80,$D$86
B40: =INDEX(dms_FeederType_5_flag,MATCH(dms_TradingName,dms_TradingName_List))="NO" | F40: $D$87,$D$81,$D$71,$D$65,$D$59,$D$49,$D$43,$D$37,$D$21,$D$15
B41: =dms_MAIFI_Flag="No" | F41: $D$55:$D$72
B44: Business & other details
B45: =(INDEX(dms_Model_Span,MATCH(dms_Model,dms_Model_List))>1)
B46: =(INDEX(dms_Model_Span,MATCH(dms_Model,dms_Model_List))=1)
B49: STYLES IN USE
C50: dms_1
C51: dms_2
C52: dms_3
C53: dms_4
C54: dms_5
C55: dms_NUM
C56: dms_NUM%
C57: dms_Row_Locked
C58: dms_Row1
C59: dms_Row2
C60: dms_T1
C61: dms_T2
C62: dms_BH
C63: dms_BY1
C64: dms_BY2
C65: dms_GH
C66: dms_GY1
C67: dms_GY2
C126: 0
C127: =IFERROR(IF(dms_Model="ARR",(MAX(0,dms_0608_LastRow-dms_0608_OffsetRows)),"not an ARR"),"0") -> not an ARR

Sheet AER NRs (hidden)
B1: AER NAMED RANGES
B3: DROP DOWN SELECTORS USED IN WORKBOOKS
B5: COVER SHEET | C5: dms_DataQuality_List | D5: dms_Confid_status_List
C6: -- select -- | D6: -- select --
C7: Actual | D7: Public
C8: Estimate | D8: Confidential
C9: Consolidated
C12: For all files either AER or business needs to be able to specify the type of submission | D12: For PTRM & RFM templates we must provide a choice in case they change their form of control - otherwise it is drawn from the business specific lookup table above.
C13: dms_SourceList | D13: dms_FormControl_Choices
C14: -- select -- | D14: Revenue cap
C15: After appeal | D15: Revenue yield
C16: Draft decision | D16: Weighted average price cap
C17: Final decision
C18: PTRM update 1
C19: PTRM update 2
C20: PTRM update 3
C21: PTRM update 4
C22: PTRM update 5
C23: PTRM update 6
C24: PTRM update 7
C25: Regulatory proposal
C26: Reporting
C27: Revised regulatory proposal
L30: This is used to create an image to insert on 6.3 STPIS sheet - not for dropdown lists.
B31: CA & RESET RINS DNSP | C31: dms_DNSP_020301_SubstationType | D31: dms_DNSP_020301_ProjectType | E31: dms_DNSP_020301_ProjectTrigger | F31: dms_DNSP_020302_ProjectType | G31: dms_DNSP_020302_ProjectTrigger | H31: dms_STPIS_Exclusion_List | I31: dms_Reason_Interruption | J31: dms_Reason_Interruption_Detailed | L31: Reason for interruption
C32: Subtransmission substation | D32: New substation establishment | E32: Demand growth | F32: New line on new route - single circuit | G32: Demand growth | H32: Weather | I32: Animal | J32: Animal impact | L32: Animal | M32: Animal impact
C33: Zone substation | D33: Substation upgrade - capacity | E33: Voltage issues | F33: New line on new route - dual circuit | G33: Voltage issues | H33: Equipment failure | I33: Asset failure | J33: Animal nesting/burrowing, etc and other | M33: Animal nesting/burrowing, etc and other
C34: Switching station | D34: Substation upgrade - voltage | E34: Reactive power issue | F34: New line on new route - other | G34: Reactive power issue | H34: Operational error | I34: Other | J34: Other | M34: Other
C35: Other | D35: Other | E35: Fault level issues | F35: Line rebuild over existing route - single circuit | G35: Fault level issues | H35: Vegetation | I35: Overloads | J35: LV | L35: Asset failure | M35: LV
E36: Safety | F36: Line rebuild over existing route - dual circuit | G36: Net market benefit | H36: Animals | I36: Planned | J36: Distribution substation | M36: Distribution substation
E37: Environment | F37: Reconductor - Single circuit | G37: Safety | H37: Third party impacts | I37: Network business | J37: HV | M37: HV
E38: Other | F38: Reconductor - Dual circuit | G38: Environment | H38: Transmission failure | I38: Third party | J38: Zone substation | M38: Zone substation
F39: Reconductor - Other | G39: Other | H39: Load shedding | I39: Unknown | J39: Subtransmission | M39: Subtransmission
F40: Line upgrade - raising/retensoring | H40: Inter-distributor connection failure | I40: Vegetation | J40: insert description of 'other' | L40: Other | M40: insert description of 'other'
F41: Line upgrade - voltage upgrade | H41: Other | I41: Weather | J41: Network error | L41: Overloads
F42: Line upgrade - capacity | I42: 2 - STPIS Exclusion (3.3)(a) | J42: Switching and protection error | L42: Planned
F43: String spare circuit | I43: 3 - STPIS Exclusion (3.3)(a) | J43: Fire | L43: Network business | M43: Network error
F44: Other | I44: 4 - STPIS Exclusion (3.3)(a) | J44: Other | M44: Switching and protection error
I45: 5 - STPIS Exclusion (3.3)(a) | J45: Dig-in | L45: Third party | M45: Fire
I46: 6 - STPIS Exclusion (3.3)(a) | J46: Unauthorised access | M46: Other
I47: 7 - STPIS Exclusion (3.3)(a) | J47: Vehicle impact | M47: Dig-in
J48: Unknown | M48: Unauthorised access
J49: Blow-in/Fall-in - NSP responsibility | M49: Vehicle impact
J50: Grow-in - NSP responsibility | L50: Unknown | M50: Unknown
J51: Blow-in/Fall-in - Other responsible party | L51: Vegetation | M51: Blow-in/Fall-in - NSP responsibility
J52: Grow-in - Other responsible party | M52: Grow-in - NSP responsibility
M53: Blow-in/Fall-in - Other responsible party
M54: Grow-in - Other responsible party
L55: Weather
L56: 2 - STPIS Exclusion (3.3)(a)
L57: 3 - STPIS Exclusion (3.3)(a)
L58: 4 - STPIS Exclusion (3.3)(a)
L59: 5 - STPIS Exclusion (3.3)(a)
L60: 6 - STPIS Exclusion (3.3)(a)
L61: 7 - STPIS Exclusion (3.3)(a)
B64: CA & RESET RINS TNSP | C64: dms_TNSP_0203_SubstationType | D64: dms_TNSP_020301_ProjectType | E64: dms_TNSP_020301_ProjectTrigger | F64: dms_TNSP_020302_ProjectType | G64: dms_TNSP_0203_ProjectTrigger
C65: Terminal station | D65: New substation establishment | E65: Demand growth | F65: New line on new route - single circuit | G65: Demand growth
C66: Switching station | D66: Capacity upgrade | E66: Voltage issues | F66: New line on new route - dual circuit | G66: Voltage issues
C67: Transmission substation | D67: Voltage upgrade | E67: Reactive power issue | F67: New line on new route - other | G67: Reactive power issue
C68: Other | D68: Other | E68: Fault level issues | F68: Line rebuild over existing route - single circuit | G68: Fault level issues
E69: Net market benefit | F69: Line rebuild over existing route - dual circuit | G69: Net market benefit
E70: Safety | F70: Reconductor - Single circuit | G70: Safety
E71: Environment | F71: Reconductor - Dual circuit | G71: Environment
E72: Other | F72: Reconductor - Other | G72: Other
F73: Line upgrade - raising/retensoring
F74: Line upgrade - voltage upgrade
F75: Line upgrade - capacity
F76: String spare circuit
F77: Other
B81: NAMED RANGES USED IN ETL PROCESS
B83: CA & RESET RINS DNSP ONLY | C83: dms_020303_01_UOM | D83: dms_020501_01_UOM | E83: dms_020501_02_UOM | F83: dms_020501_03_UOM | G83: dms_020501_04_UOM | H83: dms_020701_01_UOM | I83: dms_020701_02_UOM | J83: dms_020701_01_Rows | K83: dms_040102_01_UOM | L83: dms_040102_04_UOM
C84: Circuit line length in km | D84: 0's | E84: 0's | F84: 0's | G84: 0's | H84: km | I84: km | J84: Route line length within zone | K84: 0's | L84: days
C85: Circuit line length in km | D85: 0's | E85: 0's | F85: 0's | G85: 0's | H85: 0's | I85: 0's | J85: Number of maintenance spans | K85: 0's | L85: 0's
C86: Circuit line length in km | D86: MVA added | E86: MVA added | F86: MVA added | G86: MVA added | H86: km | I86: km | J86: Total length of maintenance spans | K86: 0's | L86: $0s
C87: Circuit line length in km | D87: 0's | E87: 0's | F87: 0's | G87: 0's | H87: km | I87: km | J87: Length of vegetation corridors | K87: $0s | L87: 0's
C88: Number | D88: total spend $0s | E88: total spend $0s | F88: total spend $0s | G88: total spend $0s | H88: 0's | I88: 0's | J88: Average number of trees per maintenance span
C89: Number | D89: net circuit km added | E89: net circuit km added | F89: net circuit km added | G89: net circuit km added | H89: years | I89: years | J89: Average frequency of cutting cycle
C90: Number | D90: total spend $0s | E90: total spend $0s | F90: total spend $0s | G90: total spend $0s
D91: net circuit km added | E91: net circuit km added | F91: net circuit km added | G91: net circuit km added
D92: total spend $0s | E92: total spend $0s | F92: total spend $0s | G92: total spend $0s
D93: 0's | F93: $0s
D94: 0's
D95: 0's
D96: $0s
B99: CA & RESET RINS TNSP ONLY | C99: dms_020701_01_UOM
C100: km
C101: 0's
C102: km
C103: 0's
C104: km
C105: metres
C106: years
B109: CA & RESET RINS DNSP & TNSP | C109: dms_020603_01_UOM
C110: 0's
C111: 0's
C112: 0's
C113: 0's
C114: (per cent)
B117: EB & RESET RINS DNSP ONLY | C117: dms_030601_01_UOM | D117: dms_030601_02_UOM | E117: dms_030701_01_UOM | F117: dms_030702_01_UOM | G117: dms_030703_01_UOM
C118: minutes/customer | D118: minutes/customer | E118: Customer / km | F118: % | G118: km
C119: minutes/customer | D119: minutes/customer | E119: MWh/customer | F119: Number of spans
C120: interruptions/customer | D120: interruptions/customer | E120: kVA / customer | F120: Number of spans
C121: interruptions/customer | D121: interruptions/customer | F121: Number of spans
F122: Number of spans
F123: Years
F124: Years
F125: Trees
F126: Trees
F127: Defects
F128: Defects
F129: Spans
F130: km
F131: Spans
C133: WHEN INSERTING COVER SHEET INTO A TNSP FILE - APPLY THESE NAMED RANGES
B134: EB & RESET RINS TNSP ONLY | C134: dms_030601_01_UOM | E134: dms_030701_01_UOM | F134: dms_030702_01_UOM
C135: % | E135: Number of spans | F135: km
C136: number | E136: Years | F136: %
C137: number | E137: Trees | F137: km
C138: % | E138: Defects | F138: number
C139: number | E139: Number of spans
C140: number | E140: km
C141: % | E141: km
C142: number | E142: Number of spans
C143: number
C144: %
C145: number
C146: %
C147: number
C148: %
C149: number
B151: EB & RESET RINS DNSP & TNSP | C151: dms_EB_RAB_PIT
C152: Beginning of year
C153: End of year
C154: End of year
C155: End of year
C156: End of year
C157: End of year
B159: ARR DNSP ONLY | C159: dms_030605_UOM | D159: dms_03060703_UOM | E159: Spare | F159: Spare
C160: number | D160: number
C161: number | D161: number
C162: number | D162: number
C163: number | D163: number
C164: number | D164: (per cent)
C165: number
C166: number
C167: number
C168: number
C169: number
C170: number
C171: number
C172: (per cent)
C173: (per cent)
B175: RFM | C175: dms_Beg | D175: dms_Mid | E175: dms_End
C176: Beginning of year | D176: Mid year | E176: End of Year
B178: PTRM | C178: dms_PTRM_RAB_PIT | D178: dms_PTRM_TAB_PIT | E178: DMS_Xfactor
C179: Beginning of year | D179: Beginning of year | E179: x factors
C180: End of year | D180: End of year
C181: End of year | D181: End of year
C182: End of year | D182: End of year
C183: End of year
B186: STPIS & MIC NAMED RANGES
B188: These "row descriptions" are the column headings in the various templates but become row descriptions in the ETL process
B190: Table 6.3 sustained interruptions - row descriptions | C190: dms_060301_CustNo_Affected_Row | D190: dms_060301_Avg_Duration_Sustained_Int_Row | E190: dms_060301_Effect_unplanned_SAIDI_Row | F190: dms_060301_Effect_unplanned_SAIFI_Row
C191: Number of customers affected by the interruption | D191: Average duration of sustained customer interruption | E191: Effect on unplanned SAIDI | F191: Effect on unplanned SAIFI
B194: Table 6.1 telephone answering - row descriptions and start date | C194: dms_060101_Rows | D194: dms_060102_Rows | E194: dms_060101_StartDateTxt
C195: Total number of calls (after removing excluded events) | D195: Number of calls answered within 30 seconds (after excluding excluded events) | E195: =dms_060701_StartDateTxt -> 1-Jan-2014
B198: Table 6.8.1 - row descriptions | C198: dms_060801_01_Rows | D198: dms_060801_02_Rows | E198: dms_060801_03_Rows | F198: dms_060801_04_Rows
C199: Number of interruptions | D199: Duration of interruptions | E199: Total unplanned minutes off supply | F199: Effect on unplanned MAIFI
B202: Table 7.9.4 - market impact component - row descriptions | C202: dms_070904_01_Rows | D202: without exclusions | E202: with exclusions
B205: These headings (Lists) are determined from the INDEX/MATCH function on the NSP selected on the Business & other details sheet
B207: Table 6.7.1 - daily performance data - unplanned - MAIFI -- row descriptions and header named range values | C207: dms_060701_Feeder_Header_Lvl4 | D207: =INDEX(dms_FeederName_1,MATCH(dms_TradingName,dms_TradingName_List)) -> CBD | E207: =INDEX(dms_FeederName_1,MATCH(dms_TradingName,dms_TradingName_List)) -> CBD | F207: =INDEX(dms_FeederName_2,MATCH(dms_TradingName,dms_TradingName_List)) -> Urban | G207: =INDEX(dms_FeederName_2,MATCH(dms_TradingName,dms_TradingName_List)) -> Urban | H207: =INDEX(dms_FeederName_3,MATCH(dms_TradingName,dms_TradingName_List)) -> Short rural | I207: =INDEX(dms_FeederName_3,MATCH(dms_TradingName,dms_TradingName_List)) -> Short rural | J207: =INDEX(dms_FeederName_4,MATCH(dms_TradingName,dms_TradingName_List)) -> Long rural | K207: =INDEX(dms_FeederName_4,MATCH(dms_TradingName,dms_TradingName_List)) -> Long rural | L207: =IF((INDEX(dms_FeederName_5,MATCH(dms_TradingName,dms_TradingName_List))=0),"Network",(INDEX(dms_FeederName_5,MATCH(dms_TradingName,dms_TradingName_List)))) -> Network | M207: =IF((INDEX(dms_FeederName_5,MATCH(dms_TradingName,dms_TradingName_List))=0),"Network",(INDEX(dms_FeederName_5,MATCH(dms_TradingName,dms_TradingName_List)))) -> Network | N207: Network | O207: Network
C209: dms_060701_Rows | D209: All events | E209: After removing excluded events | F209: All events | G209: After removing excluded events | H209: All events | I209: After removing excluded events | J209: All events | K209: After removing excluded events | L209: All events | M209: After removing excluded events | N209: All events | O209: After removing excluded events
D210: the number of column headings changes from 10 to 12 depending on the number of feeder categories for the NSP
C212: dms_0603_FeederList | D212: =INDEX(dms_FeederName_1,MATCH(dms_TradingName,dms_TradingName_List)) -> CBD | E212: =INDEX(dms_FeederName_2,MATCH(dms_TradingName,dms_TradingName_List)) -> Urban | F212: =INDEX(dms_FeederName_3,MATCH(dms_TradingName,dms_TradingName_List)) -> Short rural | G212: =INDEX(dms_FeederName_4,MATCH(dms_TradingName,dms_TradingName_List)) -> Long rural
B215: Use these to add to specific worksheets in existing files | C215: Use these to add to specific worksheets in existing files
B218: ARRs 6.7 STPIS daily performance | C218: dms_060101_Values | D218: dms_060102_Values | E218: dms_060701_Values
C219: dms_LeapYear
B222: ARR's 6.8 STPIS exclusions | C222: dms_060801_Event_Date | D222: dms_060801_OutageID | E222: dms_060801_FeederID | F222: dms_060801_FeederClass | G222: dms_060801_CauseID | H222: dms_060801_01_Values | I222: dms_060801_02_Values | J222: dms_060801_03_Values | K222: dms_060801_Excl_Cat | L222: dms_060801_04_Values
C223: dms_060801_StartCell
B226: CA 6.3 sustained interruptions | C226: dms_060301_Event_Date | D226: dms_060301_Event_Time | E226: dms_060301_AssetID | F226: dms_060301_FeederClass | G226: dms_060301_Reason | H226: dms_060301_DetailedReason | I226: dms_060301_CustNo_Affected_Values | J226: dms_060301_Avg_Duration_Sustained_Int_Values | K226: dms_060301_Effect_unplanned_SAIDI_Values | L226: dms_060301_Effect_unplanned_SAIFI_Values | M226: dms_060301_MED

Sheet AER lookups (hidden)
B1: AER LOOKUP TABLES
B3: Data in these columns used for data validation and database purposes.
B4: Date last modified: | C4: 2017-01-16 | D4: added (Albury and Victora) for AGN
C5: 2016-10-17 | D5: updated TransGrid's correct legal name, corrected TasNetworks (T) to June financial year
C6: 2017-02-01 | D6: inserted Power and Water, added NRs (dms_FeederCat_1 and dms_FeederCat_2)
C7: 2017-03-03 | D7: inserted AEMO as a business | AB7: FOR ELECTRICITY BUSINESSES ONLY
C8: 2018-03-28 | D8: major changes to accommodate STPIS
C9: Template Version | D9: 5 | AB9: Feeder Types | AF9: TasNetworks (D) | AG9: MAIFI flag | AH9: Feeder Names
AB11: CBD | AC11: Urban | AD11: Short rural | AE11: long rural | AF11: EXTRA
B12: dms_TradingName_List | C12: dms_TradingNameFull_List | D12: dms_ABN_List | E12: dms_JurisdictionList | F12: dms_Sector_List | G12: dms_Segment_List | H12: dms_FormControl_List | I12: dms_RPT_List | J12: dms_RPTMonth_List | K12: dms_CRCPlength_List | L12: dms_FRCPlength_List | M12: dms_PRCPlength_List | N12: dms_663_List | O12: dms_DeterminationRef_List | P12: dms_Addr1_List | Q12: dms_Addr2_List | R12: dms_Suburb_List | S12: dms_State_List | T12: dms_PostCode_List | U12: dms_PAddr1_List | V12: dms_PAddr2_List | W12: dms_PSuburb_List | X12: dms_PState_List | Y12: dms_PPostCode_List | Z12: dms_ContactName1_List | AA12: dms_ContactPh1_List | AB12: dms_ContactEmail_List | AC12: dms_CBD_flag | AD12: dms_Urban_flag | AE12: dms_ShortRural_flag | AF12: dms_LongRural_flag | AG12: dms_FeederType_5_flag | AH12: dms_MAIFI_flag_List | AI12: dms_FeederName_1 | AJ12: dms_FeederName_2 | AK12: dms_FeederName_3 | AL12: dms_FeederName_4 | AM12: dms_FeederName_5 | AN12: dms_Public_Lighting_List | AO12: Column1
B13: ActewAGL Distribution | C13: ActewAGL Distribution | D13: 76670568688 | E13: ACT | F13: Electricity | G13: Distribution | H13: Revenue cap | I13: Financial | J13: June | K13: 5 | L13: 5 | M13: 5 | N13: 5 | O13: 2014-19 Distribution Determination | P13: 40 Bunda Street | R13: CANBERRA | S13: ACT | T13: 2600 | U13: GPO BOX 366 | W13: CANBERRA | X13: ACT | Y13: 2601 | Z13: Robert Walker | AA13: 02 6248 3847 | AB13: robert.walker@actewagle.com.au | AC13: NO | AD13: YES | AE13: YES | AF13: NO | AG13: NO | AH13: NO | AI13: CBD | AJ13: Urban | AK13: Short rural | AL13: Long rural | AN13: YES | AO13: ActewAGL Distribution
B14: ActewAGL Distribution (Tx Assets) | C14: ActewAGL Distribution (Tx Assets) | D14: 76670568688 | E14: ACT | F14: Electricity | G14: Distribution | H14: Revenue cap | I14: Financial | J14: June | K14: 5 | L14: 5 | M14: 5 | N14: 5 | O14: distribution determination | P14: 40 Bunda Street | R14: CANBERRA | S14: ACT | T14: 2600 | U14: GPO BOX 366 | W14: CANBERRA | X14: ACT | Y14: 2601 | Z14: Robert Walker | AA14: 02 6248 3847 | AB14: robert.walker@actewagle.com.au | AC14: NO | AD14: YES | AE14: YES | AF14: NO | AG14: NO | AH14: NO | AI14: CBD | AJ14: Urban | AK14: Short rural | AL14: Long rural | AN14: NO | AO14: ActewAGL Distribution (Tx Assets)
B15: ActewAGL Gas | C15: ActewAGL Gas | D15: 76670568688 | E15: ACT | F15: Gas | G15: Distribution | H15: Weighted average price cap | I15: Financial | J15: June | K15: 5 | L15: 5 | M15: 5 | N15: x | P15: 40 Bunda Street | R15: CANBERRA | S15: ACT | T15: 2600 | U15: GPO BOX 366 | W15: CANBERRA | X15: ACT | Y15: 2601 | Z15: Philip Deamer | AA15: 02 6248 3438 | AB15: GasAAReview@actewagl.com.au | AC15: NO | AD15: NO | AE15: NO | AF15: NO | AG15: NO | AH15: - | AI15: CBD | AJ15: Urban | AK15: Short rural | AL15: Long rural | AN15: NO | AO15: ActewAGL Gas
B16: AEMO | C16: Australian Energy Market Operator Ltd | D16: 94072010327 | E16: Vic | F16: Electricity | G16: Transmission | H16: - | I16: Financial | J16: March | K16: 5 | L16: 5 | M16: 5 | N16: x | O16: - | P16: Level 22 | Q16: 530 Collins Street | R16: MELBOURNE | S16: Vic | T16: 3000 | U16: GPO Box 2008 | W16: MELBOURNE | X16: Vic | Y16: 3001 | AC16: NO | AD16: NO | AE16: NO | AF16: NO | AG16: NO | AH16: - | AI16: CBD | AJ16: Urban | AK16: Short rural | AL16: Long rural | AN16: NO | AO16: AEMO
B17: AGN (Albury and Victoria) | C17: Australian Gas Networks Limited (reporting data for Albury and Victoria) | D17: 19078551685 | E17: Vic | F17: Gas | G17: Distribution | H17: Weighted average price cap | I17: Calendar | J17: December | K17: 5 | L17: 5 | M17: 5 | N17: x | P17: Level 6 | Q17: 400 King William Street | R17: ADELAIDE | S17: SA | T17: 5000 | U17: PO Box 6468 | V17: Halifax Street | W17: ADELAIDE | X17: SA | Y17: 5000 | Z17: Craig de Laine | AA17: 08 8418 1129 | AB17: craig.delaine@agn.com.au | AC17: NO | AD17: NO | AE17: NO | AF17: NO | AG17: NO | AH17: - | AI17: CBD | AJ17: Urban | AK17: Short rural | AL17: Long rural | AN17: NO | AO17: AGN (Albury)
B18: AGN (Albury) | C18: Australian Gas Networks Limited (reporting data for Albury) | D18: 19078551685 | E18: Vic | F18: Gas | G18: Distribution | H18: Weighted average price cap | I18: Calendar | J18: December | K18: 5 | L18: 5 | M18: 5 | N18: x | P18: Level 6 | Q18: 400 King William Street | R18: ADELAIDE | S18: SA | T18: 5000 | U18: PO Box 6468 | V18: Halifax Street | W18: ADELAIDE | X18: SA | Y18: 5000 | Z18: Craig de Laine | AA18: 08 8418 1129 | AB18: craig.delaine@agn.com.au | AC18: NO | AD18: NO | AE18: NO | AF18: NO | AG18: NO | AH18: - | AI18: CBD | AJ18: Urban | AK18: Short rural | AL18: Long rural | AN18: NO
B19: AGN (SA) | C19: Australian Gas Networks Limited (reporting data for SA) | D19: 19078551685 | E19: SA | F19: Gas | G19: Distribution | H19: Weighted average price cap | I19: Financial | J19: June | K19: 5 | L19: 5 | M19: 5 | N19: 5 | O19: distribution determination | P19: Level 6 | Q19: 400 King William Street | R19: ADELAIDE | S19: SA | T19: 5000 | U19: PO Box 6468 | V19: Halifax Street | W19: ADELAIDE | X19: SA | Y19: 5000 | Z19: Craig de Laine | AA19: 08 8418 1129 | AB19: craig.delaine@agn.com.au | AC19: NO | AD19: NO | AE19: NO | AF19: NO | AG19: NO | AH19: - | AI19: CBD | AJ19: Urban | AK19: Short rural | AL19: Long rural | AN19: NO | AO19: AGN (SA)
B20: AGN (Victoria) | C20: Australian Gas Networks Limited (reporting data for Victoria) | D20: 19078551685 | E20: Vic | F20: Gas | G20: Distribution | H20: Weighted average price cap | I20: Calendar | J20: December | K20: 5 | L20: 5 | M20: 5 | N20: x | P20: Level 6 | Q20: 400 King William Street | R20: ADELAIDE | S20: SA | T20: 5000 | U20: PO Box 6468 | V20: Halifax Street | W20: ADELAIDE | X20: SA | Y20: 5000 | Z20: Craig de Laine | AA20: 08 8418 1129 | AB20: craig.delaine@agn.com.au | AC20: NO | AD20: NO | AE20: NO | AF20: NO | AG20: NO | AH20: - | AI20: CBD | AJ20: Urban | AK20: Short rural | AL20: Long rural | AN20: NO | AO20: AGN (Victoria)
B21: Amadeus | C21: APT Pipelines (NT) Pty Ltd | D21: 39009737393 | E21: NT | F21: Gas | G21: Transmission | H21: Weighted average price cap | I21: Financial | J21: June | K21: 5 | L21: 5 | M21: 5 | N21: x | O21: n/a | P21: Level 19, HSBC Building | Q21: 580 George Street | R21: SYDNEY | S21: NSW | T21: 2000 | U21: Level 19, HSBC Building | V21: 580 George Street | W21: SYDNEY | X21: NSW | Y21: 2000 | Z21: Alexandra Curran | AA21: 02 9275 0020 | AB21: alexandra.curran@apa.com.au | AC21: NO | AD21: NO | AE21: NO | AF21: NO | AG21: NO | AH21: - | AI21: CBD | AJ21: Urban | AK21: Short rural | AL21: Long rural | AN21: NO | AO21: Amadeus
B22: APA GasNet | C22: APA GasNet Australia (Operations) Pty Ltd | D22: 065083009 | E22: Vic | F22: Gas | G22: Transmission | H22: Weighted average price cap | I22: Calendar | J22: December | K22: 5 | L22: 5 | M22: 5 | N22: x | P22: Level 19, HSBC Building | Q22: 580 George Street | R22: SYDNEY | S22: NSW | T22: 2000 | U22: PO Box R41 | W22: ROYAL EXCHANGE | X22: NSW | Y22: 1225 | Z22: Alexandra Curran | AA22: 02 9275 0020 | AB22: alexandra.curran@apa.com.au | AC22: NO | AD22: NO | AE22: NO | AF22: NO | AG22: NO | AH22: - | AI22: CBD | AJ22: Urban | AK22: Short rural | AL22: Long rural | AN22: NO | AO22: APA GasNet
B23: Ausgrid | C23: Ausgrid | D23: 78508211731 | E23: NSW | F23: Electricity | G23: Distribution | H23: Revenue cap | I23: Financial | J23: June | K23: 5 | L23: 5 | M23: 5 | N23: 5 | O23: 2014-19 Distribution Determination | P23: 570 George St | R23: SYDNEY | S23: NSW | T23: 2000 | U23: GPO Box 4009 | W23: SYDNEY | X23: NSW | Y23: 2001 | Z23: John Thomson | AA23: 02 9269 2312 | AB23: john.thomson@ausgrid.com.au | AC23: YES | AD23: YES | AE23: YES | AF23: YES | AG23: NO | AH23: NO | AI23: CBD | AJ23: Urban | AK23: Short rural | AL23: Long rural | AN23: YES | AO23: Ausgrid
B24: Ausgrid (Tx Assets) | C24: Ausgrid (Tx Assets) | D24: 67505337385 | E24: NSW | F24: Electricity | G24: Distribution | H24: Revenue cap | I24: Financial | J24: June | K24: 5 | L24: 5 | M24: 5 | N24: 5 | O24: distribution determination | P24: 570 George St | R24: SYDNEY | S24: NSW | T24: 2000 | U24: GPO Box 4009 | W24: SYDNEY | X24: NSW | Y24: 2001 | Z24: John Thomson | AA24: 02 9269 2312 | AB24: john.thomson@ausgrid.com.au | AC24: YES | AD24: YES | AE24: YES | AF24: YES | AG24: NO | AH24: NO | AI24: CBD | AJ24: Urban | AK24: Short rural | AL24: Long rural | AN24: NO | AO24: Ausgrid (Tx Assets)
B25: AusNet (D) | C25: AusNet Electricity Services Pty Ltd | D25: 91064651118 | E25: Vic | F25: Electricity | G25: Distribution | H25: Revenue cap | I25: Calendar | J25: December | K25: 5 | L25: 5 | M25: 5 | N25: 2 | O25: 2016-20 Distribution Determination | P25: Level 32 | Q25: 2 Southbank Boulevard | R25: SOUTHBANK | S25: Vic | T25: 3006 | U25: Locked Bag 14051 | W25: MELBOURNE CITY MAIL CENTRE | X25: Vic | Y25: 8001 | Z25: Thomas Hall | AB25: thomas. hall@ausnetservices.com.au | AC25: NO | AD25: YES | AE25: YES | AF25: YES | AG25: NO | AH25: YES | AI25: CBD | AJ25: Urban | AK25: Short rural | AL25: Long rural | AN25: YES | AO25: AusNet (D)
B26: AusNet (Gas) | C26: AusNet Gas Services | D26: 086015036 | E26: Vic | F26: Gas | G26: Distribution | H26: Weighted average price cap | I26: Calendar | J26: December | K26: 5 | L26: 5 | M26: 5 | N26: X | P26: Level 19, HSBC Building | Q26: 580 George Street | R26: SYDNEY | S26: NSW | T26: 2000 | U26: PO Box R41 | W26: ROYAL EXCHANGE | X26: NSW | Y26: 1225 | Z26: Alexandra Curran | AA26: 02 9275 0020 | AB26: alexandra.curran@apa.com.au | AC26: NO | AD26: NO | AE26: NO | AF26: NO | AG26: NO | AH26: - | AI26: CBD | AJ26: Urban | AK26: Short rural | AL26: Long rural | AN26: NO | AO26: AusNet (Gas)
B27: AusNet (T) | C27: Ausnet Services (Transmission) Ltd | D27: 48116124362 | E27: Vic | F27: Electricity | G27: Transmission | H27: Revenue cap | I27: Financial | J27: March | K27: 5 | L27: 5 | M27: 5 | N27: 2 | O27: transmission determination | P27: Level 32 | Q27: 2 Southbank Boulevard | R27: SOUTHBANK | S27: Vic | T27: 3006 | U27: Locked Bag 14051 | W27: MELBOURNE CITY MAIL CENTRE | X27: Vic | Y27: 8001 | Z27: Clare Thompson | AA27: 03 9695 6670 | AB27: clare.e.thompson@ausnetservices.com.au | AC27: NO | AD27: NO | AE27: NO | AF27: NO | AG27: NO | AH27: - | AI27: CBD | AJ27: Urban | AK27: Short rural | AL27: Long rural | AN27: NO | AO27: AusNet (T)
B28: Australian Distribution Co. | C28: Australian Distribution Co. | D28: 11222333444 | E28: - | F28: Electricity | G28: Distribution | H28: Revenue cap | I28: Financial | J28: June | K28: 5 | L28: 5 | M28: 5 | N28: 2 | O28: distribution determination | P28: 123 Straight Street | R28: SYDNEY | S28: NSW | T28: 2000 | U28: PO Box 123 | W28: SYDNEY | X28: NSW | Y28: 2000 | Z28: Bob Smith | AA28: 02 1234 5678 | AB28: bob@auselec.net.au | AC28: YES | AD28: YES | AE28: YES | AF28: YES | AG28: NO | AH28: NO | AI28: CBD | AJ28: Urban | AK28: Short rural | AL28: Long rural | AN28: YES | AO28: Australian Distribution Co.
B29: Australian Distribution Co. (Gas) | C29: Australian Gas Distribution Co. | D29: 11222333444 | E29: NSW | F29: Gas | G29: Distribution | H29: Weighted average price cap | I29: Financial | J29: June | K29: 5 | L29: 5 | M29: 5 | P29: 123 Straight Street | R29: SYDNEY | S29: NSW | T29: 2000 | U29: PO Box 123 | W29: SYDNEY | X29: NSW | Y29: 2000 | Z29: Bob Smith | AA29: 02 1234 5678 | AB29: bob@auselec.net.au | AC29: NO | AD29: NO | AE29: NO | AF29: NO | AG29: NO | AH29: - | AI29: CBD | AJ29: Urban | AK29: Short rural | AL29: Long rural | AN29: NO | AO29: Australian Distribution Co. (Vic)
B30: Australian Distribution Co. (Vic) | C30: Australian Distribution Co. (Victoria) | D30: 11222333444 | E30: Vic | F30: Electricity | G30: Distribution | H30: Revenue cap | I30: Calendar | J30: December | K30: 5 | L30: 5 | M30: 5 | N30: 2 | O30: distribution determination | P30: 123 Straight Street | R30: MELBOURNE | S30: Vic | T30: 3000 | U30: PO Box 123 | W30: MELBOURNE | X30: Vic | Y30: 3000 | Z30: Bob Smith | AA30: 02 1234 5678 | AB30: bob@auselec.net.au | AC30: NO | AD30: NO | AE30: NO | AF30: NO | AG30: NO | AH30: YES | AI30: CBD | AJ30: Urban | AK30: Short rural | AL30: Long rural | AN30: YES | AO30: Australian Distribution Co. (Vic)
B31: Australian Transmission Co. | C31: Australian Transmission Co. | D31: 11222333444 | E31: - | F31: Electricity | G31: Transmission | H31: Revenue cap | I31: Financial | J31: June | K31: 5 | L31: 5 | M31: 5 | N31: 5 | O31: transmission determination | P31: 123 Straight Street | R31: SYDNEY | S31: NSW | T31: 2000 | U31: PO Box 123 | W31: SYDNEY | X31: NSW | Y31: 2000 | Z31: Bob Smith | AA31: 02 1234 5678 | AB31: bob@auselec.net.au | AC31: NO | AD31: NO | AE31: NO | AF31: NO | AG31: NO | AH31: - | AI31: CBD | AJ31: Urban | AK31: Short rural | AL31: Long rural | AN31: NO | AO31: Australian Transmission Co.
B32: Central Ranges Pipeline (D) | C32: Central Ranges Pipeline Pty Ltd | D32: 108218355 | E32: NSW | F32: Gas | G32: Distribution | H32: Weighted average price cap | I32: Financial | J32: June | K32: 15 | L32: 5 | M32: 5 | N32: 5 | O32: distribution determination | P32: Level 19 | Q32: 580 George Street | R32: SYDNEY | S32: NSW | T32: 2000 | U32: PO Box R41 | W32: ROYAL EXCHANGE | X32: NSW | Y32: 1225 | Z32: Scott Young | AA32: 02 9275 0031 | AB32: scott.young@apa.com.au | AC32: NO | AD32: NO | AE32: NO | AF32: NO | AG32: NO | AH32: - | AI32: CBD | AJ32: Urban | AK32: Short rural | AL32: Long rural | AN32: NO
B33: Central Ranges Pipeline (T) | C33: Central Ranges Pipeline Pty Ltd | D33: 108218355 | E33: NSW | F33: Gas | G33: Distribution | H33: Weighted average price cap | I33: Financial | J33: June | K33: 14 | L33: 5 | M33: 5 | N33: 5 | O33: transmission determination | P33: Level 19 | Q33: 580 George Street | R33: SYDNEY | S33: NSW | T33: 2000 | U33: PO Box R41 | W33: ROYAL EXCHANGE | X33: NSW | Y33: 1225 | Z33: Scott Young | AA33: 02 9275 0031 | AB33: scott.young@apa.com.au | AC33: NO | AD33: NO | AE33: NO | AF33: NO | AG33: NO | AH33: - | AI33: CBD | AJ33: Urban | AK33: Short rural | AL33: Long rural | AN33: NO
B34: CitiPower | C34: CitiPower | D34: 76064651056 | E34: Vic | F34: Electricity | G34: Distribution | H34: Revenue cap | I34: Calendar | J34: December | K34: 5 | L34: 5 | M34: 5 | N34: 2 | O34: 2016-20 Distribution Determination | P34: 40 Market Street | R34: MELBOURNE | S34: Vic | T34: 3000 | U34: Locked Bag 14090 | W34: MELBOURNE | X34: Vic | Y34: 8001 | Z34: Hannah Williams | AA34: 03 9683 4088 | AB34: hwilliams@powercor.com.au | AC34: YES | AD34: YES | AE34: NO | AF34: NO | AG34: NO | AH34: YES | AI34: CBD | AJ34: Urban | AK34: Short rural | AL34: Long rural | AN34: YES | AO34: CitiPower
B35: Directlink | C35: Directlink | D35: 16779340889 | E35: Qld | F35: Electricity | G35: Transmission | H35: Revenue cap | I35: Financial | J35: June | K35: 5 | L35: 5 | M35: 5 | N35: 5 | O35: transmission determination | P35: Level 25 | Q35: 580 George Street | R35: SYDNEY | S35: NSW | T35: 2000 | U35: PO Box R41 | W35: ROYAL EXCHANGE | X35: NSW | Y35: 1225 | Z35: Mark Allen | AA35: 02 9275 0010 | AB35: mark.allen@apa.com.au | AC35: NO | AD35: NO | AE35: NO | AF35: NO | AG35: NO | AH35: - | AI35: CBD | AJ35: Urban | AK35: Short rural | AL35: Long rural | AN35: NO | AO35: Directlink
B36: ElectraNet | C36: ElectraNet | D36: 41094482416 | E36: SA | F36: Electricity | G36: Transmission | H36: Revenue cap | I36: Financial | J36: June | K36: 5 | L36: 5 | M36: 5 | N36: 5 | O36: transmission determination | P36: 52-55 East Terrace | Q36: Rymill Park | R36: ADELAIDE | S36: SA | T36: 5000 | U36: PO Box 7096 | V36: Hutt Street Post Office | W36: ADELAIDE | X36: SA | Y36: 5000 | Z36: Bill Jackson | AA36: 08 8404 7969 | AB36: jackson.bill@electranet.com.au | AC36: NO | AD36: NO | AE36: NO | AF36: NO | AG36: NO | AH36: - | AI36: CBD | AJ36: Urban | AK36: Short rural | AL36: Long rural | AN36: NO | AO36: ElectraNet
B37: Endeavour Energy | C37: Endeavour Energy | D37: 11247365823 | E37: NSW | F37: Electricity | G37: Distribution | H37: Revenue cap | I37: Financial | J37: June | K37: 5 | L37: 5 | M37: 5 | N37: 5 | O37: 2014-19 Distribution Determination | P37: 51 Huntingwood Drive | R37: HUNTINGWOOD | S37: NSW | T37: 2148 | U37: PO Box 811 | W37: SEVEN HILLS | X37: NSW | Y37: 1730 | Z37: Jon Hocking | AA37: 02 9853 4386 / 0407 348 156 | AB37: Jon.Hocking@Endeavourenergy.com.au | AC37: NO | AD37: YES | AE37: YES | AF37: YES | AG37: NO | AH37: NO | AI37: CBD | AJ37: Urban | AK37: Short rural | AL37: Long rural | AN37: YES | AO37: Endeavour Energy
B38: Energex | C38: Energex | D38: 40078849055 | E38: Qld | F38: Electricity | G38: Distribution | H38: Revenue cap | I38: Financial | J38: June | K38: 5 | L38: 5 | M38: 5 | N38: 5 | O38: 2015-20 Distribution Determination | P38: 26 Reddacliff Street | R38: NEWSTEAD | S38: Qld | T38: 4006 | U38: 26 Reddacliff Street | W38: NEWSTEAD | X38: QLD | Y38: 4006 | Z38: Jenny Doyle, Group Manager Regulatory Affairs | AA38: (07) 3851 6416 | AB38: jenny.doyle@ergon.com.au | AC38: YES | AD38: YES | AE38: YES | AF38: NO | AG38: NO | AH38: NO | AI38: CBD | AJ38: Urban | AK38: Short rural | AL38: Long rural | AN38: YES | AO38: Energex
B39: Ergon Energy | C39: Ergon Energy | D39: 50087646062 | E39: Qld | F39: Electricity | G39: Distribution | H39: Revenue cap | I39: Financial | J39: June | K39: 5 | L39: 5 | M39: 5 | N39: 5 | O39: 2015-20 Distribution Determination | P39: 22 Walker Street | R39: TOWNSVILLE | S39: Qld | T39: 4810 | U39: Po Box 264 | W39: FORTITUDE VALLEY | X39: QLD | Y39: 4006 | Z39: Jenny Doyle, Group Manager Regulatory Affairs | AA39: (07) 3851 6416 | AB39: jenny.doyle@ergon.com.au | AC39: NO | AD39: YES | AE39: YES | AF39: YES | AG39: NO | AH39: NO | AI39: CBD | AJ39: Urban | AK39: Short rural | AL39: Long rural | AN39: YES | AO39: Ergon Energy
B40: Essential Energy | C40: Essential Energy | D40: 37428185226 | E40: NSW | F40: Electricity | G40: Distribution | H40: Revenue cap | I40: Financial | J40: June | K40: 5 | L40: 5 | M40: 5 | N40: 5 | O40: 2014-19 Distribution Determination | P40: 8 Buller Street | R40: PORT MACQUARIE | S40: NSW | T40: 2444 | U40: PO Box 5730 | W40: PORT MACQUARIE | X40: NSW | Y40: 2444 | Z40: Catherine Waddell | AA40: 02 6338 3553 | AB40: catherine.waddell@essentialenergy.com.au | AC40: NO | AD40: NO | AE40: YES | AF40: YES | AG40: NO | AH40: NO | AI40: CBD | AJ40: Urban | AK40: Short rural | AL40: Long rural | AN40: YES | AO40: Essential Energy
B41: Jemena Electricity | C41: Jemena Electricity | D41: 82064651083 | E41: Vic | F41: Electricity | G41: Distribution | H41: Revenue cap | I41: Calendar | J41: December | K41: 5 | L41: 5 | M41: 5 | N41: 2 | O41: 2016-20 Distribution Determination | P41: Level 16 | Q41: 567 Collins Street | R41: MELBOURNE | S41: Vic | T41: 3000 | U41: PO Box 16182 | W41: MELBOURNE | X41: Vic | Y41: 8001 | Z41: Matthew Serpell | AA41: 03 9173 8231 | AB41: matthew.serpell@jemena.com.au | AC41: NO | AD41: YES | AE41: YES | AF41: NO | AG41: NO | AH41: YES | AI41: CBD | AJ41: Urban | AK41: Short rural | AL41: Long rural | AN41: YES | AO41: Jemena Electricity
B42: JGN | C42: Jemena Gas Networks (NSW) Ltd | D42: 003 004 322 | E42: NSW | F42: Gas | G42: Distribution | H42: Weighted average price cap | I42: Financial | J42: June | K42: 5 | L42: 5 | M42: 5 | Z42: please provide contact details | AC42: NO | AD42: NO | AE42: NO | AF42: NO | AG42: NO | AH42: - | AI42: CBD | AJ42: Urban | AK42: Short rural | AL42: Long rural | AN42: NO | AO42: JGN
B43: Multinet Gas | C43: Multinet Gas (DB No.1) Pty Ltd (ACN 086 026 986), Multinet Gas (DB No.2) Pty Ltd (ACN 086 230 122) | D43: 086026986 | E43: Vic | F43: Gas | G43: Distribution | H43: Weighted average price cap | I43: Calendar | J43: December | K43: 5 | L43: 5 | M43: 5 | N43: x | P43: 43-45 Centreway | R43: MT WAVERLEY | S43: Vic | T43: 3149 | Z43: Andrew Schille | AA43: 03 8846 9860 | AB43: andrew.schille@ue.com.au | AC43: NO | AD43: NO | AE43: NO | AF43: NO | AG43: NO | AH43: - | AI43: CBD | AJ43: Urban | AK43: Short rural | AL43: Long rural | AN43: NO | AO43: Multinet Gas
B44: Murraylink | C44: Murraylink | D44: 79181207909 | E44: SA | F44: Electricity | G44: Transmission | H44: Revenue cap | I44: Financial | J44: June | K44: 5 | L44: 5 | M44: 5 | N44: 5 | O44: transmission determination | P44: Level 19 | Q44: 580 George Street | R44: SYDNEY | S44: NSW | T44: 2000 | U44: PO Box R41 | W44: ROYAL EXCHANGE | X44: NSW | Y44: 1225 | Z44: Scott Young | AA44: 02 9275 0031 | AB44: scott.young@apa.com.au | AC44: NO | AD44: NO | AE44: NO | AF44: NO | AG44: NO | AH44: - | AI44: CBD | AJ44: Urban | AK44: Short rural | AL44: Long rural | AN44: NO | AO44: Murraylink
B45: Power and Water | C45: Power and Water Corporation | D45: 15947352360 | E45: NT | F45: Electricity | G45: Distribution | H45: Revenue cap | I45: Financial | J45: June | K45: 5 | L45: 5 | M45: 5 | N45: x | O45: distribution determination | P45: GPO Box 1921 | R45: DARWIN | S45: NT | T45: 801 | U45: GPO Box 1921 | W45: DARWIN | X45: NT | Y45: 801 | Z45: Lucy Moon | AA45: 08 8924 5822 | AB45: Lucy.Moon@powerwater.com.au | AC45: YES | AD45: YES | AE45: YES | AF45: YES | AG45: NO | AH45: NO | AI45: CBD | AJ45: Urban | AK45: Short rural | AL45: Long rural | AN45: NO | AO45: Power and Water
B46: Powercor Australia | C46: Powercor Australia | D46: 89064651109 | E46: Vic | F46: Electricity | G46: Distribution | H46: Revenue cap | I46: Calendar | J46: December | K46: 5 | L46: 5 | M46: 5 | N46: 2 | O46: 2016-20 Distribution Determination | P46: 40 Market Street | R46: MELBOURNE | S46: Vic | T46: 3000 | U46: Locked bag 14090 | W46: MELBOURNE | X46: Vic | Y46: 8001 | Z46: Hannah Williams | AA46: 03 9683 4088 | AB46: hwilliams@powercor.com.au | AC46: NO | AD46: NO | AE46: YES | AF46: YES | AG46: NO | AH46: YES | AI46: CBD | AJ46: Urban | AK46: Short rural | AL46: Long rural | AN46: YES | AO46: Powercor Australia
B47: Powerlink | C47: Queensland Electricity Transmission Corporation Limited trading as Powerlink Queensland | D47: 82078849233 | E47: Qld | F47: Electricity | G47: Transmission | H47: Revenue cap | I47: Financial | J47: June | K47: 5 | L47: 5 | M47: 5 | N47: 5 | O47: transmission determination | P47: 33 Harold St | R47: VIRGINIA | S47: Qld | T47: 4014 | U47: PO Box 1193 | W47: VIRGINIA | X47: QLD | Y47: 4014 | Z47: Jennifer Harris | AA47: 07 3860 2667 | AB47: jharris@powerlink.com.au | AC47: NO | AD47: NO | AE47: NO | AF47: NO | AG47: NO | AH47: - | AI47: CBD | AJ47: Urban | AK47: Short rural | AL47: Long rural | AN47: NO | AO47: Powerlink
B48: Roma to Brisbane Pipeline | C48: APT Petroleum Pipelines Limited t/a Roma to Brisbane Pipeline | D48: 009 737 393 | E48: Qld | F48: Gas | G48: Transmission | H48: Weighted average price cap | I48: Financial | J48: June | K48: 5 | L48: 5 | M48: 5 | N48: x | O48: n/a | P48: 580 George Street | R48: SYDNEY | S48: NSW | T48: 2000 | U48: PO Box R41 | W48: ROYAL EXCHANGE | X48: NSW | Y48: 1225 | Z48: Mark Allen | AA48: 02 9275 0010 | AB48: mark.allen@apa.com.au | AC48: NO | AD48: NO | AE48: NO | AF48: NO | AG48: NO | AH48: - | AI48: CBD | AJ48: Urban | AK48: Short rural | AL48: Long rural | AN48: NO | AO48: Roma to Brisbane Pipeline
B49: SA Power Networks | C49: SA Power Networks | D49: 13332330749 | E49: SA | F49: Electricity | G49: Distribution | H49: Revenue cap | I49: Financial | J49: June | K49: 5 | L49: 5 | M49: 5 | N49: 5 | O49: 2015-20 Distribution Determination | P49: 1 Anzac Highway | R49: KESWICK | S49: SA | T49: 5035 | U49: GPO Box 77 | W49: ADELAIDE | X49: SA | Y49: 5000 | Z49: Richard Sibly | AA49: 08 8404 5613 | AB49: richard.sibly@sapowernetworks.com.au | AC49: NO | AD49: NO | AE49: YES | AF49: YES | AG49: NO | AH49: NO | AI49: CBD | AJ49: Urban | AK49: Short rural | AL49: Long rural | AN49: NO | AO49: SA Power Networks
B50: TasNetworks (D) | C50: TasNetworks (D) | D50: 24167357299 | E50: Tas | F50: Electricity | G50: Distribution | H50: Revenue cap | I50: Financial | J50: June | K50: 5 | L50: 5 | M50: 5 | N50: 5 | O50: distribution determination | P50: 1-7 Maria Street | R50: LENAH VALLEY | S50: Tas | T50: 7008 | U50: PO Box 606 | W50: MOONAH | X50: Tas | Y50: 7009 | Z50: Tim Astley | AA50: 03 6271 6151 | AB50: tim.astley@tasnetworks.com.au | AC50: YES | AD50: YES | AE50: YES | AF50: YES | AG50: YES | AH50: NO | AI50: Critical Infrastructure | AJ50: High density commercial | AK50: Urban | AL50: High density rural | AM50: Low density rural | AN50: YES | AO50: TasNetworks (D)
B51: TasNetworks (T) | C51: TasNetworks (T) | D51: 24167357299 | E51: Tas | F51: Electricity | G51: Transmission | H51: Revenue cap | I51: Financial | J51: June | K51: 5 | L51: 5 | M51: 5 | N51: 5 | O51: transmission determination | P51: 1-7 Maria Street | R51: LENAH VALLEY | S51: Tas | T51: 7008 | U51: PO Box 606 | W51: MOONAH | X51: Tas | Y51: 7009 | Z51: Tim Astley | AA51: 03 6271 6151 | AB51: tim.astley@tasnetworks.com.au | AC51: NO | AD51: NO | AE51: NO | AF51: NO | AG51: NO | AH51: - | AI51: CBD | AJ51: Urban | AK51: Short rural | AL51: Long rural | AN51: NO | AO51: TasNetworks (T)
B52: TransGrid | C52: NSW Electricity Networks Operations Pty Ltd trading as TransGrid | D52: 70 250 995 390 | E52: NSW | F52: Electricity | G52: Transmission | H52: Revenue cap | I52: Financial | J52: June | K52: 4 | L52: 5 | M52: 5 | N52: 5 | O52: transmission determination | P52: 180 Thomas Street | R52: SYDNEY | S52: NSW | T52: 2000 | U52: PO Box A1000 | W52: SYDNEY SOUTH | X52: NSW | Y52: 1235 | Z52: Garrie Chubb | AA52: 0408 210 221 | AB52: garrie.chubb@transgrid.com.au | AC52: NO | AD52: NO | AE52: NO | AF52: NO | AG52: NO | AH52: - | AI52: CBD | AJ52: Urban | AK52: Short rural | AL52: Long rural | AN52: NO | AO52: TransGrid
B53: United Energy | C53: United Energy | D53: 70064651029 | E53: Vic | F53: Electricity | G53: Distribution | H53: Revenue cap | I53: Calendar | J53: December | K53: 5 | L53: 5 | M53: 5 | N53: 2 | O53: 2016-20 Distribution Determination | P53: 43-45 Centreway | R53: MOUNT WAVERLEY | S53: Vic | T53: 3149 | U53: PO Box 449 | W53: MOUNT WAVERLEY | X53: Vic | Y53: 3170 | Z53: Mathew Abraham | AA53: 03 8846 9758 | AB53: mathew.abraham@ue.com.au | AC53: NO | AD53: NO | AE53: YES | AF53: NO | AG53: NO | AH53: YES | AI53: CBD | AJ53: Urban | AK53: Short rural | AL53: Long rural | AN53: YES | AO53: United Energy
B58: The Reg Year Ending (dms_RYE) must be set to the last year of the regulatory period. For forecast data is is usually (FRCP_y5) for actual it is a single year (CRY). For historical actual data the RYE will need to be set manually in the business details sheet by setting the dms_Multiyear_flag to 1 and putting the correct value in 'dms_Specified_FinalYear. See cells C67:C68
B59: dms_Model_List | C59: dms_Model_Name_Format1 | D59: dms_Worksheet_List | E59: dms_Model_Span_List
B60: ARR | C60: Annual Reporting | D60: =IF(dms_MultiYear_ResponseFlag="yes","NEW HISTORICAL ANNUAL REPORTING","ANNUAL REPORTING") -> ANNUAL REPORTING | E60: 1
B61: CA | C61: Category Analysis | D61: =IF(dms_MultiYear_ResponseFlag="yes","NEW HISTORICAL CATEGORY ANALYSIS","CATEGORY ANALYSIS") -> CATEGORY ANALYSIS | E61: 1
B62: CESS | C62: Capitlal Expenditure | D62: CAPITLAL EXPENDITURE SHARING SCHEMING | E62: 5
B63: CPI | C63: CPI | D63: CPI | E63: 5
B64: EB | C64: Economic Benchmarking | D64: =IF(dms_MultiYear_ResponseFlag="yes","NEW HISTORICAL ECONOMIC BENCHMARKING","ECONOMIC BENCHMARKING") -> ECONOMIC BENCHMARKING | E64: 1
B65: Pricing | C65: Pricing Proposal | D65: PRICING PROPOSAL | E65: 5
B66: PTRM | C66: Post Tax Revenue Model | D66: POST TAX REVENUE MODEL | E66: 5
B67: Reset | C67: Regulatory Reporting (Reset) | D67: REGULATORY REPORTING STATEMENT | E67: 5
B68: RFM | C68: Roll Forward Model | D68: ROLL FORWARD MODEL | E68: 5
B69: WACC | C69: Weighted Average Cost of Capital | D69: WEIGHTED AVERAGE COST OF CAPITAL | E69: 1
B73: Financial | C73: Calendar | E73: PREVIOUS | G73: CURRENT | I73: FORTHCOMING
B74: 1987-88 | C74: 1988 | D74: PRCP_y1 | E74: =INDEX(INDIRECT(dms_RPT),dms_PRCP_start_row) -> 2011 | F74: CRCP_y1 | G74: =INDEX(INDIRECT(dms_RPT),dms_CRCP_start_row) -> 2016 | H74: =FRCP_y1 -> 2021 | I74: =INDEX(INDIRECT(dms_RPT),dms_FRCP_start_row) -> 2021
B75: 1988-89 | C75: 1989 | D75: PRCP_y2 | E75: =INDEX(INDIRECT(dms_RPT),dms_PRCP_start_row+1) -> 2012 | F75: CRCP_y2 | G75: =INDEX(INDIRECT(dms_RPT),dms_CRCP_start_row+1) -> 2017 | H75: FRCP_y2 | I75: =INDEX(INDIRECT(dms_RPT),dms_FRCP_start_row+1) -> 2022
B76: 1989-90 | C76: 1990 | D76: PRCP_y3 | E76: =INDEX(INDIRECT(dms_RPT),dms_PRCP_start_row+2) -> 2013 | F76: CRCP_y3 | G76: =INDEX(INDIRECT(dms_RPT),dms_CRCP_start_row+2) -> 2018 | H76: FRCP_y3 | I76: =INDEX(INDIRECT(dms_RPT),dms_FRCP_start_row+2) -> 2023
B77: 1990-91 | C77: 1991 | D77: PRCP_y4 | E77: =INDEX(INDIRECT(dms_RPT),dms_PRCP_start_row+3) -> 2014 | F77: CRCP_y4 | G77: =INDEX(INDIRECT(dms_RPT),dms_CRCP_start_row+3) -> 2019 | H77: FRCP_y4 | I77: =INDEX(INDIRECT(dms_RPT),dms_FRCP_start_row+3) -> 2024
B78: 1991-92 | C78: 1992 | D78: PRCP_y5 | E78: =INDEX(INDIRECT(dms_RPT),dms_PRCP_start_row+4) -> 2015 | F78: CRCP_y5 | G78: =INDEX(INDIRECT(dms_RPT),dms_CRCP_start_row+4) -> 2020 | H78: FRCP_y5 | I78: =INDEX(INDIRECT(dms_RPT),dms_FRCP_start_row+4) -> 2025
B79: 1992-93 | C79: 1993 | D79: PRCP_y6 | E79: =INDEX(INDIRECT(dms_RPT),dms_PRCP_start_row+5) -> 2016 | F79: CRCP_y6 | G79: =INDEX(INDIRECT(dms_RPT),dms_CRCP_start_row+5) -> 2021 | H79: FRCP_y6 | I79: =INDEX(INDIRECT(dms_RPT),dms_FRCP_start_row+5) -> 2026
B80: 1993-94 | C80: 1994 | D80: PRCP_y7 | E80: =INDEX(INDIRECT(dms_RPT),dms_PRCP_start_row+6) -> 2017 | F80: CRCP_y7 | G80: =INDEX(INDIRECT(dms_RPT),dms_CRCP_start_row+6) -> 2022 | H80: FRCP_y7 | I80: =INDEX(INDIRECT(dms_RPT),dms_FRCP_start_row+6) -> 2027
B81: 1994-95 | C81: 1995 | D81: PRCP_y8 | E81: =INDEX(INDIRECT(dms_RPT),dms_PRCP_start_row+7) -> 2018 | F81: CRCP_y8 | G81: =INDEX(INDIRECT(dms_RPT),dms_CRCP_start_row+7) -> 2023 | H81: FRCP_y8 | I81: =INDEX(INDIRECT(dms_RPT),dms_FRCP_start_row+7) -> 2028
B82: 1995-96 | C82: 1996 | D82: PRCP_y9 | E82: =INDEX(INDIRECT(dms_RPT),dms_PRCP_start_row+8) -> 2019 | F82: CRCP_y9 | G82: =INDEX(INDIRECT(dms_RPT),dms_CRCP_start_row+8) -> 2024 | H82: FRCP_y9 | I82: =INDEX(INDIRECT(dms_RPT),dms_FRCP_start_row+8) -> 2029
B83: 1996-97 | C83: 1997 | D83: PRCP_y10 | E83: =INDEX(INDIRECT(dms_RPT),dms_PRCP_start_row+9) -> 2020 | F83: CRCP_y10 | G83: =INDEX(INDIRECT(dms_RPT),dms_CRCP_start_row+9) -> 2025 | H83: FRCP_y10 | I83: =INDEX(INDIRECT(dms_RPT),dms_FRCP_start_row+9) -> 2030
B84: 1997-98 | C84: 1998 | D84: PRCP_y11 | E84: =INDEX(INDIRECT(dms_RPT),dms_PRCP_start_row+10) -> 2021 | F84: CRCP_y11 | G84: =INDEX(INDIRECT(dms_RPT),dms_CRCP_start_row+10) -> 2026 | H84: FRCP_y11 | I84: =INDEX(INDIRECT(dms_RPT),dms_FRCP_start_row+10) -> 2031
B85: 1998-99 | C85: 1999 | D85: PRCP_y12 | E85: =INDEX(INDIRECT(dms_RPT),dms_PRCP_start_row+11) -> 2022 | F85: CRCP_y12 | G85: =INDEX(INDIRECT(dms_RPT),dms_CRCP_start_row+11) -> 2027 | H85: FRCP_y12 | I85: =INDEX(INDIRECT(dms_RPT),dms_FRCP_start_row+11) -> 2032
B86: 1999-00 | C86: 2000 | D86: PRCP_y13 | E86: =INDEX(INDIRECT(dms_RPT),dms_PRCP_start_row+12) -> 2023 | F86: CRCP_y13 | G86: =INDEX(INDIRECT(dms_RPT),dms_CRCP_start_row+12) -> 2028 | H86: FRCP_y13 | I86: =INDEX(INDIRECT(dms_RPT),dms_FRCP_start_row+12) -> 2033
B87: 2000-01 | C87: 2001 | D87: PRCP_y14 | E87: =INDEX(INDIRECT(dms_RPT),dms_PRCP_start_row+13) -> 2024 | F87: CRCP_y14 | G87: =INDEX(INDIRECT(dms_RPT),dms_CRCP_start_row+13) -> 2029 | H87: FRCP_y14 | I87: =INDEX(INDIRECT(dms_RPT),dms_FRCP_start_row+13) -> 2034
B88: 2001-02 | C88: 2002 | D88: PRCP_y15 | E88: =INDEX(INDIRECT(dms_RPT),dms_PRCP_start_row+14) -> 2025 | F88: CRCP_y15 | G88: =INDEX(INDIRECT(dms_RPT),dms_CRCP_start_row+14) -> 2030 | H88: FRCP_y15 | I88: =INDEX(INDIRECT(dms_RPT),dms_FRCP_start_row+14) -> 2035
B89: 2002-03 | C89: 2003 | D89: PRCP_y16 | E89: =INDEX(INDIRECT(dms_RPT),dms_PRCP_start_row+15) -> 2026 | F89: CRCP_y16 | G89: =INDEX(INDIRECT(dms_RPT),dms_CRCP_start_row+15) -> 2031 | H89: FRCP_y16 | I89: =INDEX(INDIRECT(dms_RPT),dms_FRCP_start_row+15) -> 2036
B90: 2003-04 | C90: 2004
B91: 2004-05 | C91: 2005
B92: 2005-06 | C92: 2006 | E92: CRY - FRY
B93: 2006-07 | C93: 2007 | D93: dms_y1 | E93: =IFERROR(INDEX(INDIRECT(dms_RPT),dms_CRY_start_row),0) -> 2019
B94: 2007-08 | C94: 2008 | D94: dms_y2 | E94: =IFERROR(INDEX(INDIRECT(dms_RPT),dms_CRY_start_row+1),0) -> 2020
B95: 2008-09 | C95: 2009 | D95: dms_y3 | E95: =IFERROR(INDEX(INDIRECT(dms_RPT),dms_CRY_start_row+2),0) -> 2021
B96: 2009-10 | C96: 2010 | D96: dms_y4 | E96: =IFERROR(INDEX(INDIRECT(dms_RPT),dms_CRY_start_row+3),0) -> 2022
B97: 2010-11 | C97: 2011 | D97: dms_y5 | E97: =IFERROR(INDEX(INDIRECT(dms_RPT),dms_CRY_start_row+4),0) -> 2023
B98: 2011-12 | C98: 2012 | D98: dms_y6 | E98: =IFERROR(INDEX(INDIRECT(dms_RPT),dms_CRY_start_row+5),0) -> 2024
B99: 2012-13 | C99: 2013 | D99: dms_y7 | E99: =IFERROR(INDEX(INDIRECT(dms_RPT),dms_CRY_start_row+6),0) -> 2025
B100: 2013-14 | C100: 2014 | D100: dms_y8 | E100: =IFERROR(INDEX(INDIRECT(dms_RPT),dms_CRY_start_row+7),0) -> 2026
B101: 2014-15 | C101: 2015 | D101: dms_y9 | E101: =IFERROR(INDEX(INDIRECT(dms_RPT),dms_CRY_start_row+8),0) -> 2027
B102: 2015-16 | C102: 2016 | D102: dms_y10 | E102: =IFERROR(INDEX(INDIRECT(dms_RPT),dms_CRY_start_row+9),0) -> 2028
B103: 2016-17 | C103: 2017 | D103: dms_y11 | E103: =IFERROR(INDEX(INDIRECT(dms_RPT),dms_CRY_start_row+10),0) -> 2029
B104: 2017-18 | C104: 2018 | D104: dms_y12 | E104: =IFERROR(INDEX(INDIRECT(dms_RPT),dms_CRY_start_row+11),0) -> 2030
B105: 2018-19 | C105: 2019 | D105: dms_y13 | E105: =IFERROR(INDEX(INDIRECT(dms_RPT),dms_CRY_start_row+12),0) -> 2031
B106: 2019-20 | C106: 2020 | D106: dms_y14 | E106: =IFERROR(INDEX(INDIRECT(dms_RPT),dms_CRY_start_row+13),0) -> 2032
B107: 2020-21 | C107: 2021 | D107: dms_y15 | E107: =IFERROR(INDEX(INDIRECT(dms_RPT),dms_CRY_start_row+14),0) -> 2033
B108: 2021-22 | C108: 2022 | D108: dms_y16 | E108: =IFERROR(INDEX(INDIRECT(dms_RPT),dms_CRY_start_row+15),0) -> 2034
B109: 2022-23 | C109: 2023
B110: 2023-24 | C110: 2024
B111: 2024-25 | C111: 2025
B112: 2025-26 | C112: 2026
B113: 2026-27 | C113: 2027
B114: 2027-28 | C114: 2028
B115: 2028-29 | C115: 2029
B116: 2029-30 | C116: 2030
B117: 2030-31 | C117: 2031
B118: 2031-32 | C118: 2032
B119: 2032-33 | C119: 2033
B120: 2033-34 | C120: 2034
B121: 2034-35 | C121: 2035
B122: 2035-36 | C122: 2036
B123: 2036-37 | C123: 2037

Sheet AER ETL (hidden)
B1: AER ETL INFORMATION
B3: USES NAMED RANGES FLAG | C3: yes | D3: dms_Defined_Names_Used
B5: IF THIS IS AN ABC RIN - make sure the the named range CRY is applied and the named range dms_dollar_nom_UOM is applied
B6: IF THIS IS A RESET RIN - make sure the named ranges CRY and dms_dollar_nom_UOM are NOT present in the workbook
B7: FOR ABC RINS THAT SPAN MULTIPLE YEARS - make sure MultiYear Flag is set and final year entered as required
A9: Selected here | B9: Model / RIN | C9: Reset | D9: dms_Model
A10: Read from Business & other details | B10: Source | C10: =dms_Selected_Source -> Regulatory proposal | D10: dms_Source
B11: Data quality | C11: =dms_Selected_Quality -> Consolidated | D11: dms_DQ_1
B12: Data status | C12: =dms_Selected_Status -> Public | D12: dms_DQ_2
B13: Amendment reason | C13: =dms_Amendment_Text -> . | F13: dms_AmendmentReason
B14: Submission date | C14: =dms_Typed_Submission_Date -> 2020-01-31 | D14: dms_SubmissionDate
A16: Redundant | B16: EBSS - First application of scheme in forthcoming period? | C16: No | D16: dms_EBSS_status
A17: Pre-populated from lookup table | B17: Data ingestion data quality | C17: =IF(dms_DQ_2="Confidential","Consolidated","Public") -> Public | D17: dms_DataQuality | E17: =IF(dms_DQ_2="Confidential","Consolidated","Public")
B18: Sector | C18: =INDEX(dms_Sector_List,MATCH(dms_TradingName,dms_TradingName_List)) -> Electricity | D18: dms_Sector | E18: =INDEX(dms_Sector_List,MATCH(dms_TradingName,dms_TradingName_List))
B19: Segment | C19: =INDEX(dms_Segment_List,MATCH(dms_TradingName,dms_TradingName_List)) -> Distribution | D19: dms_Segment | E19: =INDEX(dms_Segment_List,MATCH(dms_TradingName,dms_TradingName_List))
B20: Regulatory Year Ending | C20: =dms_RYE_result -> 2025 | D20: dms_RYE | E20: =IF(dms_MultiYear_Flag=1,LEFT(dms_Specified_FinalYear,2)&RIGHT(dms_Specified_FinalYear,2),INDEX(dms_RYE_Formula_Result,MATCH(dms_Model,dms_Model_List)))
B21: Reporting Period Type | C21: =INDEX(dms_RPT_List,MATCH(dms_TradingName,dms_TradingName_List)) -> Calendar | D21: dms_RPT | E21: =INDEX(dms_RPT_List,MATCH(dms_TradingName,dms_TradingName_List))
B22: EB/CA Unit of Measure for Monetary Values | C22: $0s | D22: dms_dollar_nom_UOM | E22: If the cover sheet is attached to an ABC RIN apply the NAMED RANGE to the cell
B23: Security Classification | C23: Public | D23: dms_Classification | E23: Always Public
B24: Jurisdiction | C24: =INDEX(dms_JurisdictionList,MATCH(dms_TradingName,dms_TradingName_List)) -> Vic | D24: dms_Jurisdiction | E24: =INDEX(dms_JurisdictionList,MATCH(dms_TradingName,dms_TradingName_List))
A25: Relevant for PTRM, RFMs and Reset RINS | B25: $ REAL REFERENCES
B26: Does the named range CRY exist in this file? | C26: =IFERROR(CRY,"NO") -> 2019
B27: CRY-1 (last full calendar year before CRY) | C27: =IFERROR(IF(dms_RPT="calendar",CRY-1,LEFT(CRY,4)),"CRY not present") -> 2018 | D27: dms_Cal_Year_B4_CRY | E27: '=IF(dms_RPT="financial",VALUE(LEFT(dms_SingleYear_FinalYear_Result,4)),VALUE(LEFT(dms_SingleYear_FinalYear_Result,4)-1))
B28: Dollar $ real month | C28: =INDEX(dms_RPTMonth_List,MATCH(dms_TradingName,dms_TradingName_List)) -> December | D28: dms_RPTMonth | E28: =INDEX(dms_RPTMonth_List,MATCH(dms_TradingName,dms_TradingName_List))
B29: Dollar $ real (the last month before the FRCP_y1) | C29: =IF(dms_SingleYearModel="yes",CONCATENATE(dms_RPTMonth)&" "&VALUE((LEFT(CRY,2))&RIGHT(CRY,2)),CONCATENATE(dms_RPTMonth)&" "&dms_DollarReal_year) -> December 2020 | D29: dms_DollarReal | E29: =IF(SUM(dms_SingleYear_Model)>0,CONCATENATE(dms_RPTMonth)&" "&VALUE((LEFT(CRY,2))&RIGHT(CRY,2)),CONCATENATE(dms_RPTMonth)&" "&VALUE((LEFT(dms_RYE,2)&RIGHT(dms_RYE,2))))
B30: Dollar $ real previous year (PRCP_y5) | C30: =IF(dms_SingleYearModel="yes",CONCATENATE(dms_RPTMonth)&" "&VALUE((LEFT(CRY,2))&RIGHT(CRY,2)),CONCATENATE(dms_RPTMonth)&" "&dms_Previous_DollarReal_year) -> December 2015 | D30: dms_DollarReal_Prev | E30: =IF(SUM(dms_SingleYear_Model)>0,CONCATENATE(dms_RPTMonth)&" "&VALUE(((LEFT(CRY,2))&RIGHT(CRY,2))-1),CONCATENATE(dms_RPTMonth)&" "&VALUE(((LEFT(dms_CRCP_FirstYear_Result,2)&RIGHT(dms_CRCP_FirstYear_Result,2))))-1)
B31: PTRM/ RFMs
B32: Form of control | C32: =INDEX(dms_FormControl_List,MATCH(dms_TradingName,dms_TradingName_List)) -> Revenue cap | D32: dms_FormControl | E32: =INDEX(dms_FormControl_List,MATCH(dms_TradingName,dms_TradingName_List))
A33: All potential values for Regulatory Years or RYEs as calculated | B33: This block works out the various RYE's for ALL RIN types and MODELS
B34: dms_start_year | C34: =FRCP_y1 -> 2021 | D34: FRCP_y1 from cover sheet
B35: dms_CRY_start_year | C35: =IFERROR(CRY,0) -> 2019
B36: dms_CRY_start_row | C36: =MATCH(CRY,INDIRECT(dms_RPT),0) -> 32
B37: dms_FRCP_start_row | C37: =MATCH(dms_start_year,INDIRECT(dms_RPT),0) -> 34 | D37: Uses FRCP_y1 as a start reference
B38: dms_CRCP_start_row | C38: =dms_FRCP_start_row-dms_CRCPlength_Num -> 29 | D38: Uses the value in dms_CRCPlength_Num
B39: dms_PRCP_start_row | C39: =dms_FRCP_start_row-dms_CRCPlength_Num-dms_PRCPlength_Num -> 24 | D39: Uses the value in dms_CRCPlength_Num and dms_PRCPlength_Num
B40: dms_RYE_start_row | C40: =dms_FRCP_start_row+(dms_FRCPlength_Num-1) -> 38 | D40: Uses the value in dms_FRCPlength_Num-1
B41: FRCP_start_year | C41: =INDEX(INDIRECT(dms_RPT),dms_FRCP_start_row) -> 2021 | D41: Converts the FRCP start row to display the year
B42: CRCP_start_year | C42: =INDEX(INDIRECT(dms_RPT),dms_CRCP_start_row) -> 2016 | D42: Converts the CRCP start row to display the year
B43: PRCP_start_year | C43: =INDEX(INDIRECT(dms_RPT),dms_PRCP_start_row) -> 2011 | D43: Converts the PRCP start row to display the year
B44: FRCP_final_year | C44: =INDEX(INDIRECT(dms_RPT),dms_FRCP_start_row+dms_FRCPlength_Num-1) -> 2025 | D44: Finds the FRCP final year
B45: CRCP_final_year | C45: =INDEX(INDIRECT(dms_RPT),dms_CRCP_start_row+dms_CRCPlength_Num-1) -> 2020 | D45: Finds the CRCP final year
B46: PRCP_final_year | C46: =INDEX(INDIRECT(dms_RPT),dms_PRCP_start_row+dms_FRCPlength_Num-1) -> 2015 | D46: Finds the PRCP final year
B47: dms_Reset_final_year | C47: =INDEX(INDIRECT(dms_RPT),dms_RYE_start_row) -> 2025 | D47: For Resets and PTRM/RFMs (same as FRCP_final_year)
B48: dms_SpecifiedYear_final_year | C48: =FRY -> 2019 | D48: FRY from cover sheet
B49: dms_DollarReal_year | C49: =LEFT(CRCP_final_year,2)&RIGHT(CRCP_final_year,2) -> 2020 | D49: Uses the value in CRCP_final_year
B50: dms_Previous_DollarReal_year | C50: =LEFT(PRCP_final_year,2)&RIGHT(PRCP_final_year,2) -> 2015 | D50: Uses the value in PRCP_final_year
B51: dms_CRY_RYE | C51: =IFERROR(LEFT(CRY,2)&RIGHT(CRY,2),0) -> 2019 | D51: For ABC single year RINS
B52: dms_Reset_RYE | C52: =IF(dms_Model_Span>1,(LEFT(dms_Reset_final_year,2)&RIGHT(dms_Reset_final_year,2)),0) -> 2025 | D52: If model span > 1 then uses dms_Reset_RYE otherwise it's a multi year ABC and uses dms_Specified_RYE
B53: dms_Specified_RYE | C53: =IF(dms_MultiYear_ResponseFlag="Yes",(LEFT(dms_Specified_FinalYear,2)&RIGHT(dms_Specified_FinalYear,2)),0) -> 0 | D53: If multi year ABC - uses dms_Specified_FinalYear
B54: dms_Model_Span | C54: =INDEX(dms_Model_Span_List,MATCH(dms_Model,dms_Model_List)) -> 5 | D54: A result of 5 is used to signify that it is more than 1 year span
B55: dms_RYE_result | C55: =IF(dms_MultiYear_ResponseFlag="yes",dms_Specified_RYE,(IF(dms_Model_Span>1,dms_Reset_RYE,dms_CRY_RYE))) -> 2025 | D55: Nested IF - feeds into dms_RYE
B56: dms_Reset_Span | C56: =IF(dms_Reset_RYE>0,CONCATENATE(FRCP_y1," to ",FRCP_final_year),0) -> 2021 to 2025 | D56: Reset span of years as text
B57: dms_SpecifiedYear_Span | C57: =IF(dms_Specified_RYE>0,CONCATENATE(CRY," to ",dms_Specified_FinalYear),0) -> 0 | D57: Multi year ABC span of years as text
B58: dms_Header_Span | C58: =IF(dms_MultiYear_Flag=1,dms_SpecifiedYear_Span,IF(dms_Model_Span>1,dms_Reset_Span,CRY)) -> 2021 to 2025 | D58: NESTED IF - for Sheet Headers
B59: ABC RINS THAT SPAN MULTIPLE YEARS
B60: This is a multi year ABC RIN? | C60: No
C61: =IF(dms_MultiYear_ResponseFlag="No",0,1) -> 0 | D61: dms_MultiYear_Flag | E61: This is set from the answer provided above
C62: =IF(dms_MultiYear_Flag=1,FRY,"not a Multiple year submission") -> not a Multiple year submission | D62: dms_Specified_FinalYear | E62: The result here is returned to dms_CRCP_FinalYear_Result if response to Q in C73 is "yes" and dms_MultiYear_Flag is set to 1
B63: Start year for 5.2 in Multi year ABC RINS | C63: =IFERROR(IF(dms_MultiYear_Flag=1,FRY,CRY),"not an ABC") -> 2019 | D63: dms_0502_Inst_Year | E63: =IF(dms_MultiYear_Flag=1,FRY,CRY) | G63: For single year RINS this is CRY - multi year RINS need to start a the end of the span of years (ie. FRY)
B64: WHAT IS THE RYE?
B65: Reg Period Lengths
B66: PRCP length in years | C66: =INDEX(dms_PRCPlength_List,MATCH(dms_TradingName,dms_TradingName_List)) -> 5 | D66: dms_PRCPlength_Num | E66: =INDEX(dms_PRCPlength_List,MATCH(dms_TradingName,dms_TradingName_List))
B67: CRCP length in years | C67: =INDEX(dms_CRCPlength_List,MATCH(dms_TradingName,dms_TradingName_List)) -> 5 | D67: dms_CRCPlength_Num | E67: =INDEX(dms_CRCPlength_List,MATCH(dms_TradingName,dms_TradingName_List))
B68: FRCP length in years | C68: =INDEX(dms_FRCPlength_List,MATCH(dms_TradingName,dms_TradingName_List)) -> 5 | D68: dms_FRCPlength_Num | E68: =INDEX(dms_FRCPlength_List,MATCH(dms_TradingName,dms_TradingName_List))
B69: Single year RIN?
B70: Single Year ABC RIN ? | C70: =IF(dms_Model="EB",1,0) -> 0 | D70: dms_EB
C71: =IF(dms_Model="CA",1,0) -> 0 | D71: dms_CA | E71: =dms_SingleYear_Model
C72: =IF(dms_Model="ARR",1,0) -> 0 | D72: dms_ARR
B73: Is this a single Year ABC RIN? | C73: =IF(SUM(dms_SingleYear_Model)=1,"yes","no") -> no | D73: dms_SingleYearModel | E73: =IF(SUM(dms_SingleYear_Model)=1,"yes","no")
B74: Single Year Final Year Result | C74: =IF(AND(dms_SingleYearModel="yes",dms_MultiYear_Flag=0),CRY,0) -> 0 | D74: dms_SingleYear_FinalYear_Result | E74: =IFERROR(IF(SUM(dms_SingleYear_Model)<>0,(INDIRECT(dms_SingleYear_FinalYear_Ref)),"not a single year RIN"),"CRY not present")
B75: Multi year RIN?
B77: Multi Year Reset/Model? | C77: =IF(dms_Model_Span>1,"yes","no") -> yes
B78: Final year result for Reset/Model | C78: =IF(dms_Model_Span>1,dms_Reset_final_year,0) -> 2025
B80: Multi Year ABC RIN? | C80: =IF(dms_MultiYear_Flag=1,"yes","no") -> no
B81: Final year result for ABC multi year | C81: =IF(dms_MultiYear_Flag=1,C48,0) -> 0
B83: EB RINS
B84: Calendar Year for table 3.6 data | C84: =IFERROR(IF(dms_Segment="Transmission",dms_Cal_Year_B4_CRY,CRY),"CRY not present") -> 2019 | D84: dms_0306_Year | E84: =IF(dms_Segment="Transmission",dms_Cal_Year_B4_CRY,CRY)
B85: CA RINS
B86: Find how many rows in tables 6.3 sustained interruptions? | E86: dms_060301_MaxRows only returns a valid value when cover sheet is attached to a CA file
C87: =IF(dms_Model<>"CA","not a CA","Is a CA") -> not a CA | E87: =IF(dms_Model<>"CA","not a CA","Is a CA")
B88: dms_060301_Avg_Duration_Sustained_Int_Values present? | C88: =IFERROR(IF(INDEX(dms_060301_Avg_Duration_Sustained_Int_Values,1,1)<>"","yes","no"),"no") -> no | D88: dms_060301_checkvalue | E88: =IFERROR(IF(INDEX(dms_060301_Avg_Duration_Sustained_Int_Values,1,1)<>"","yes","no"),"no")
C89: =IF(AND(dms_Model="CA",(dms_060301_checkvalue="no")),"error - NR not present","no errors") -> no errors | E89: =IF(AND(dms_Model="CA",(dms_060301_checkvalue="no")),"error - NR not present","no errors")
B90: Table 6.3.1 - last row reference | C90: =IFERROR(IF(dms_Model="CA",LOOKUP(2,1/(dms_060301_Avg_Duration_Sustained_Int_Values<>""),(ROW(dms_060301_Avg_Duration_Sustained_Int_Values))),"not a CA"),"6.3 not present") -> not a CA | D90: dms_060301_LastRow | E90: =IFERROR(IF(dms_Model="CA",LOOKUP(2,1/(dms_060301_Avg_Duration_Sustained_Int_Values<>""),(ROW(dms_060301_Avg_Duration_Sustained_Int_Values))),"not a CA"),"6.3 not present")
B91: Table 6.3.1 - max number rows | C91: =IFERROR(IF(dms_Model="CA",(dms_060301_LastRow-15),"not a CA"),"error") -> not a CA | D91: dms_060301_MaxRows | E91: =IFERROR(IF(dms_Model="CA",(dms_060301_LastRow-15),"not a CA"),"error")
B92: Table 6.6.3 - Public lighting repair - no. business days | C92: =INDEX(dms_663_List,MATCH(dms_TradingName,dms_TradingName_List)) -> 2 | D92: dms_663 | E92: =INDEX(dms_663_List,MATCH(dms_TradingName,dms_TradingName_List))
B93: ARR or RESET RINS
B94: How many rows in tables 6.1 or 6.7? (leap year?) | C94: insert dms_LeapYear NR if required | E94: 'dms_LeapYear is used to determine dms_060701_Max_Rows BUT it is only found on worksheet 6.1 or 6.7 and the date value in the cell is used to determine whether it is a leap year
B95: Is dms_LeapYear named range present? | C95: =IFERROR(IF(dms_LeapYear,"yes"),"no") -> no
B96: Table 6.7.1 - includes a leap year? | C96: =IFERROR(IF(MONTH(DATE(YEAR(dms_LeapYear),2,29))=2,"is a leap year","not a leap year"), "dms_LeapYear not present") -> dms_LeapYear not present | D96: dms_LeapYear_Result | E96: =IFERROR(IF(MONTH(DATE(YEAR(dms_LeapYear),2,29))=2,"is a leap year","not a leap year"),"dms_LeapYear not present")
B97: MaxRows if Reset and leap year | C97: =IF(dms_LeapYear_Result="is a leap year",1827,1826) -> 1826 | D97: dms_060701_Reset_MaxRows | E97: =IF(dms_LeapYear_Result="is a leap year",1827,1826) | H97: number of days present in Reset RIN table
B98: MaxRows if ARR and leap year | C98: =IF(dms_LeapYear_Result="is a leap year",366,365) -> 365 | D98: dms_060701_ARR_MaxRows | E98: =IF(dms_LeapYear_Result="is a leap year",366,365) | H98: number of days present in ARR RIN table
B99: Table 6.7.1 - Max Rows (leap year/ non leap year) | C99: =IF(dms_Model="ARR",dms_060701_ARR_MaxRows,IF(dms_Model="Reset",dms_060701_Reset_MaxRows,"not a relevant RIN type")) -> 1826 | D99: dms_060701_MaxRows | E99: =IF(dms_Model="ARR",dms_060701_ARR_MaxRows,IF(dms_Model="Reset",dms_060701_Reset_MaxRows,"not a relevant RIN type"))
B100: How many columns in 6.7? (4 or 5 feeder categories) | C100: =IF(dms_FifthFeeder_flag_NSP="NO","This NSP has only 4 feeder categories","This NSP has 5 feeder categories") -> This NSP has only 4 feeder categories
B101: Table 6.7.1 - Last column (# of feeder categories > 4) | C101: =IF(dms_FifthFeeder_flag_NSP="NO",10,12) -> 10 | D101: dms_060701_MaxCols | E101: =IF(dms_FifthFeeder_flag_NSP="NO",8,10)
B102: Table 6.7.1 - Number of offset rows | C102: =IF(dms_Model="ARR",15,9) -> 9 | D102: dms_060701_OffsetRows | E102: =IF(dms_Model="ARR",15,9)
B103: Start date for telephone answering in 6.1 or 6.7? | E103: Using 060101 as naming standard not 060701 for start dates
B104: Table 6.1.1 and 6.7.1 - Start Date as Text | C104: =IF(dms_SingleYearModel="yes",(CONCATENATE(IF(LEN(CRY)=4,"1-Jan-","1-Jul-"),LEFT(CRY,4))),(CONCATENATE(IF(LEN(PRCP_y4)=4,"1-Jan-","1-Jul-"),LEFT(PRCP_y4,4)))) -> 1-Jan-2014 | D104: dms_060101_StartDateTxt | E104: =IF(SUM(dms_SingleYear_Model)>1,(CONCATENATE(IF(LEN(CRY)=4,"1-Jan-","1-Jul-"),LEFT(CRY,4))),(CONCATENATE(IF(LEN(CRCP_y4)=4,"1-Jan-","1-Jul-"),LEFT(CRCP_y4,4))))
B105: Table 6.1.1 and 6.7.1 - Start Date as Date Value | C105: =DATEVALUE(dms_060701_StartDateTxt) -> 41640 | D105: dms_060101_StartDateVal | E105: =DATEVALUE(dms_060701_StartDateTxt)
B106: ARRs
B107: How many rows in table 6.8? | C107: insert dms_060801_StartCell NR if required | E107: dms_060801_StartCell is only found on worksheet 6.8 and is used to determine the starting date for the date range
B108: Is dms_060801_StartCell named range present? | C108: yes | E108: =IFERROR(IF((ROW(dms_060801_StartCell)-1)=1,"yes","yes"),"no")
B109: Table 6.8 - Number of offset rows | C109: 12 | D109: dms_0608_OffsetRows | E109: =IFERROR(IF(dms_Model="ARR",(ROW(dms_060801_StartCell)-1),"not an ARR"),"6.8 error")
B110: Table 6.8 - Last row | C110: 0 | D110: dms_0608_LastRow | E110: =IFERROR(IF(dms_060801_StartCell<>"",IF(dms_Model="ARR",(LOOKUP(2,1/(dms_060801_01_Values<>""),(ROW(dms_060801_01_Values)))),"not an ARR"),0),"0")
B111: Table 6.8 - MaxRows | C111: =IFERROR(IF(dms_Model="ARR",(MAX(0,dms_0608_LastRow-dms_0608_OffsetRows)),"not an ARR"),"0") -> not an ARR | D111: dms_060801_MaxRows | E111: =IFERROR(IF(dms_Model="ARR",(MAX(0,dms_0608_LastRow-dms_0608_OffsetRows)),"not an ARR"),"0")
B112: TNSP RESET RINS
B113: Table 7.9.4 only appears in TNSPs Reset RIN
B114: Table 7.9.4 - first year | C114: =LEFT(PRCP_y3,4) -> 2013 | D114: dms_070904_Start_Year | E114: =LEFT(PRCP_y3,4)
B116: MISC
B117: Distribution Determination Reference | C117: =INDEX(dms_DeterminationRef_List,MATCH(dms_TradingName,dms_TradingName_List)) -> 2016-20 Distribution Determination | D117: dms_DeterminationRef
B118: Public lighting NSP? | C118: =INDEX(dms_Public_Lighting_List,MATCH(dms_TradingName,dms_TradingName_List)) -> YES | D118: dms_Public_Lighting | E118: =INDEX(dms_Public_Lighting_List,MATCH(dms_TradingName,dms_TradingName_List))
B119: CBD Feeder for this business | C119: =INDEX(dms_CBD_flag,MATCH(dms_TradingName,dms_TradingName_List)) -> NO | D119: dms_CBD_flag_NSP
B120: Urban Feeder for this business | C120: =INDEX(dms_Urban_flag,MATCH(dms_TradingName,dms_TradingName_List)) -> YES | D120: dms_Urban_flag_NSP
B121: Short rural Feeder for this business | C121: =INDEX(dms_ShortRural_flag,MATCH(dms_TradingName,dms_TradingName_List)) -> YES | D121: dms_ShortRural_flag_NSP
B122: Long rural Feeder for this business | C122: =INDEX(dms_LongRural_flag,MATCH(dms_TradingName,dms_TradingName_List)) -> YES | D122: dms_LongRural_flag_NSP
B123: Fifth Feeder Category (eg. TasNetworks (D)) | C123: =INDEX(dms_FeederType_5_flag,MATCH(dms_TradingName,dms_TradingName_List)) -> NO | D123: dms_FifthFeeder_flag_NSP | E123: =INDEX(dms_FeederType_5_flag,MATCH(dms_TradingName,dms_TradingName_List))
B125: DISCARD FILES
B126: discard this record? | C126: NO | D126: dms_DISCARD | E126: If record is to be discarded from DB set this flag to YES
B128: SUBSET FILES
B129: Is this Submission File a Subset File | C129: NO | D129: dms_Partial
B132: REGULATORY YEARS FOR MULTI RYE SUBMISSIONS
B133: Multiple RYE flag | C133: NO | D133: dms_Multi_RYE_flag
C134: Manually specify RYE | D134: Named ranges to apply
C135: 2013 | D135: dms_RYE_01
C136: 2014 | D136: dms_RYE_02
C137: 2015 | D137: dms_RYE_03
C138: 2016 | D138: dms_RYE_04
C139: 2017 | D139: dms_RYE_05
C140: 2018 | D140: dms_RYE_06
C141: 2019 | D141: dms_RYE_07
C142: 2020 | D142: dms_RYE_08
C143: 2021 | D143: dms_RYE_09

Sheet Business & other details
V1: =INDEX(dms_Worksheet_List,MATCH(dms_Model,dms_Model_List)) -> REGULATORY REPORTING STATEMENT
V2: =INDEX(dms_TradingNameFull_List,MATCH(dms_TradingName,dms_TradingName_List)) -> AusNet Electricity Services Pty Ltd
V3: =dms_Header_Span -> 2021 to 2025
V4: BUSINESS & OTHER DETAILS
V6: INSTRUCTIONS
V7: Complete the following business details regulatory template before entering data or values in any other regulatory template. This regulatory template is linked to other cells within the spreadsheet and automatically generates column headings and conditional formatting to distinguish business specific input and non-input cells.
Q9: SUBMISSION PARTICULARS INPUT SHEET
V12: ENTITY DETAILS
V14: Business Name
V16: Short name | AL16: AusNet (D)
V17: ACN/ABN | AL17: =INDEX(dms_ABN_List,MATCH(dms_TradingName,dms_TradingName_List)) -> 91064651118
V21: Business Address | BQ21: Postal Address
V23: Address 1 | AL23: =INDEX(dms_Addr1_List,MATCH(dms_TradingName,dms_TradingName_List)) -> Level 32 | BI23: Address 1 | BQ23: =INDEX(dms_Addr1_List,MATCH(dms_TradingName,dms_TradingName_List)) -> Level 32
V24: Address 2 | AL24: =IF(ISBLANK(INDEX(dms_Addr2_List,MATCH(dms_TradingName,dms_TradingName_List))),"",(INDEX(dms_Addr2_List,MATCH(dms_TradingName,dms_TradingName_List)))) -> 2 Southbank Boulevard | BI24: Address 2 | BQ24: =IF(ISBLANK(INDEX(dms_Addr2_List,MATCH(dms_TradingName,dms_TradingName_List))),"",(INDEX(dms_Addr2_List,MATCH(dms_TradingName,dms_TradingName_List)))) -> 2 Southbank Boulevard
V25: Suburb | AL25: Southbank | BI25: Suburb | BQ25: Southbank
V26: State | AL26: =INDEX(dms_State_List,MATCH(dms_TradingName,dms_TradingName_List)) -> Vic | AV26: Post code | AX26: 3006 | BI26: State | BQ26: =INDEX(dms_PState_List,MATCH(dms_TradingName,dms_TradingName_List)) -> Vic | CA26: Post code | CC26: 3006
BA28: `
V30: Contact Names
V32: Name | AL32: Charlotte Eddy | BI32: Name | BQ32: Namrata Powale
V33: Phone | AL33: 03 9695 6309 | BI33: Phone | BQ33: 03 9695 6968
V34: Email | AL34: charlotte.eddy@ausnetservices.com.au | BI34: Email | BQ34: Namrata.Powale@ausnetservices.com.au
V39: REGULATORY CONTROL PERIODS
V42: RESETS | AF42: Forthcoming period | AR42: 2021 | BA42: =FRCP_y2 -> 2022 | BJ42: =FRCP_y3 -> 2023 | BS42: =FRCP_y4 -> 2024 | CB42: =FRCP_y5 -> 2025
AR43: =FRCP_y6 -> 2026 | BA43: =FRCP_y7 -> 2027 | BJ43: =FRCP_y8 -> 2028 | BS43: =FRCP_y9 -> 2029 | CB43: =FRCP_y10 -> 2030
AR44: =FRCP_y11 -> 2031 | BA44: =FRCP_y12 -> 2032 | BJ44: =FRCP_y13 -> 2033 | BS44: =FRCP_y14 -> 2034 | CB44: =FRCP_y15 -> 2035
AF46: Current period | AR46: =CRCP_y1 -> 2016 | BA46: =CRCP_y2 -> 2017 | BJ46: =CRCP_y3 -> 2018 | BS46: =CRCP_y4 -> 2019 | CB46: =CRCP_y5 -> 2020
AR47: =CRCP_y6 -> 2021 | BA47: =CRCP_y7 -> 2022 | BJ47: =CRCP_y8 -> 2023 | BS47: =CRCP_y9 -> 2024 | CB47: =CRCP_y10 -> 2025
AR48: =CRCP_y11 -> 2026 | BA48: =CRCP_y12 -> 2027 | BJ48: =CRCP_y13 -> 2028 | BS48: =CRCP_y14 -> 2029 | CB48: =CRCP_y15 -> 2030
AF50: Previous period | AR50: =PRCP_y1 -> 2011 | BA50: =PRCP_y2 -> 2012 | BJ50: =PRCP_y3 -> 2013 | BS50: =PRCP_y4 -> 2014 | CB50: =PRCP_y5 -> 2015
AR51: =PRCP_y6 -> 2016 | BA51: =PRCP_y7 -> 2017 | BJ51: =PRCP_y8 -> 2018 | BS51: =PRCP_y9 -> 2019 | CB51: =PRCP_y10 -> 2020
AR52: =PRCP_y11 -> 2021 | BA52: =PRCP_y12 -> 2022 | BJ52: =PRCP_y13 -> 2023 | BS52: =PRCP_y14 -> 2024 | CB52: =PRCP_y15 -> 2025
V54: ANNUAL RINS | AF54: Commencing year | AR54: 2019
AF56: Final year | AR56: 2019
V60: SUBMISSION DETAILS
AF62: RIN type | AR62: =INDIRECT(dms_Model) -> Regulatory Reporting (Reset)
V64: THIS FILE | AF64: Source | AR64: Regulatory proposal
AF66: Data Quality | AR66: Consolidated
AF68: Confidentiality Status | AR68: Public
AF70: Amended RIN Amendment Reason | AR70: .
AF74: Submission Date | AR74: 2020-01-31

Sheet 7.5 EBSS
B1: =INDEX(dms_Worksheet_List,MATCH(dms_Model,dms_Model_List)) -> REGULATORY REPORTING STATEMENT
B2: =INDEX(dms_TradingNameFull_List,MATCH(dms_TradingName,dms_TradingName_List)) -> AusNet Electricity Services Pty Ltd
B3: =dms_Header_Span -> 2021 to 2025
B4: 7.5 EBSS
B6: Intstructions
B7: =CONCATENATE(dms_TradingName, " is required to populate all input cells (yellow) in this worksheet.") -> AusNet (D) is required to populate all input cells (yellow) in this worksheet.
B8: Efficiency gains are calculated using the formulae below. Adjusted target and actual amounts are used to calculate the carry over amounts. We will calculate the efficiency gain in first year (n) as follows: En = (Fn – An) – (Fn-1 – An-1) + (Fb – Ab) where Fn is the forecast opex we approved for the first year, and An is the actual opex incurred in the first year, and so on. The formula references the base year used to forecast opex. Actual opex in the final year of the current regulatory period should be set so that any incremental efficiency gains made after the base year sum to zero.
B12: Actual and estimated inflation
C13: Actual | M13: Estimated
C14: 2009 | D14: 2010 | E14: 2011 | F14: 2012 | G14: 2013 | H14: 2014 | I14: 2015 | J14: 2016 | K14: 2017 | L14: 2018 | M14: 2019 | N14: 2020 | O14: HY2021
B15: ABS CPI index - December (old base) | D15: 174 | E15: 179.4
B16: ABS CPI index - December (rebased) | E16: 99.8 | F16: 102 | G16: 104.8 | H16: 106.6 | I16: 108.4 | J16: 110 | K16: 112.1 | L16: 114.1 | M16: 116 | N16: 118.204 | O16: 119.96895
B17: Inflation rate (per cent) | E17: =E15/D15-1 -> 0.03103448276 | F17: =+F16/E16-1 -> 0.02204408818 | G17: 0.02745098039 | H17: 0.01717557252 | I17: 0.01688555347 | J17: 0.0147601476 | K17: 0.01909090909 | L17: 0.0178412132 | M17: =+M16/L16-1 -> 0.0166520596 | N17: =+N16/M16-1 -> 0.019 | O17: =+O16/N16-1 -> 0.0149313898
B18: Reconstructed cumulative index June 2021 = 1 | D18: =E18/(1+E17) -> 0.8068419922 | E18: =F18/(1+F17) -> 0.8318819161 | F18: 0.8502199944 | G18: 0.8735593668 | H18: 0.8885632491 | I18: 0.9035671313 | J18: 0.9169039156 | K18: 0.9344084449 | L18: =M18/(1+M17) -> 0.9510794251 | M18: =N18/(1+N17) -> 0.9669168564 | N18: =O18/(1+O17) -> 0.9852882767 | O18: 1
B22: 7.5.1 - The carryover amounts that arise from applying the EBSS during the current regulatory control period
B24: Base year for the previous period (drop down menu) | C24: 2014
B25: 7.5.1.1 - Opex allowance applicable to EBSS (EBSS target)
C26: =CONCATENATE("$m, real ",dms_RPTMonth," ",(LEFT(PRCP_y1,2)&RIGHT(PRCP_y1,2))-1) -> $m, real December 2010 | H26: =CONCATENATE("$m, real ",dms_RPTMonth," ",(LEFT(PRCP_y5,2)&RIGHT(PRCP_y5,2))) -> $m, real December 2015 | O26: $m, real June 2021
C27: Previous period | H27: Current regulatory control period | O27: Previous period | Q27: Current regulatory control period
C28: =PRCP_y1 -> 2011 | D28: =PRCP_y2 -> 2012 | E28: =PRCP_y3 -> 2013 | F28: =PRCP_y4 -> 2014 | G28: =PRCP_y5 -> 2015 | H28: =CRCP_y1 -> 2016 | I28: =CRCP_y2 -> 2017 | J28: =CRCP_y3 -> 2018 | K28: =CRCP_y4 -> 2019 | L28: =CRCP_y5 -> 2020 | M28: HY2021 | O28: =dms_PRCP_BaseYear -> 2014 | P28: =PRCP_y5 -> 2015 | Q28: =CRCP_y1 -> 2016 | R28: =CRCP_y2 -> 2017 | S28: =CRCP_y3 -> 2018 | T28: =CRCP_y4 -> 2019 | U28: =CRCP_y5 -> 2020 | V28: HY2021
B29: Total opex allowance | F29: 179.95 | G29: 182.4 | H29: 225.085475 | I29: 229.2717892 | J29: 234.8116955 | K29: 239.3994738 | L29: 244.9477858 | O29: =+LOOKUP(dms_PRCP_BaseYear,C$28:G$28,C29:G29)/$D$18 -> 223.0300378 | P29: =+G29/$D$18 -> 226.0665679 | Q29: =+H29/$I$18 -> 249.1076392 | R29: 253.7407363 | S29: 259.8718871 | T29: 264.9492943 | U29: 271.0897479 | V29: 0
B30: Approved excludable costs - allowance
B31: Debt raising costs | F31: -1.4 | G31: -1.49 | H31: -1.745637168 | I31: -1.826105596 | J31: -1.948797878 | K31: -2.051955719 | L31: -2.165707799 | O31: =+LOOKUP(dms_PRCP_BaseYear,C$28:G$28,C31:G31)/$D$18 -> -1.73516006 | P31: =+G31/$D$18 -> -1.846706064 | Q31: =H31/$I$18 -> -1.931939651 | R31: -2.020996041 | S31: -2.156782612 | T31: -2.270949936 | U31: -2.396842165 | V31: 0
B32: Self Insurance | F32: -1.3 | G32: -1.3 | H32: 0 | I32: 0 | J32: 0 | K32: 0 | L32: 0 | O32: -1.611220056 | P32: -1.611220056 | Q32: 0 | R32: 0 | S32: 0 | T32: 0 | U32: 0 | V32: 0
B33: DMIA | F33: -0.6 | G33: -0.6 | H33: 0 | I33: 0 | J33: 0 | K33: 0 | L33: 0 | O33: -0.7436400259 | P33: -0.7436400259 | Q33: 0 | R33: 0 | S33: 0 | T33: 0 | U33: 0 | V33: 0
B34: GSL | F34: -3.92 | G34: -3.82 | H34: -8.3 | I34: -8.3 | J34: -8.3 | K34: -8.3 | L34: -8.3 | O34: -4.858448169 | P34: -4.734508165 | Q34: -9.185814437 | R34: -9.185814437 | S34: -9.185814437 | T34: -9.185814437 | U34: -9.185814437 | V34: 0
B35: Capitalisation policy changes | O35: 0 | P35: 0 | Q35: 0 | R35: 0 | S35: 0 | T35: 0 | U35: 0 | V35: 0
B36: Other adjustments or exclusions required by the EBSS | O36: 0 | P36: 0 | Q36: 0 | R36: 0 | S36: 0 | T36: 0 | U36: 0 | V36: 0
B37: Forecast opex for EBSS purposes | C37: =SUM(C29:C36) -> 0 | D37: 0 | E37: 0 | F37: 172.73 | G37: 175.19 | H37: =SUM(H29:H36) -> 215.0398378 | I37: 219.1456836 | J37: 224.5628977 | K37: 229.0475181 | L37: 234.482078 | M37: 0 | O37: =+SUM(O29:O36) -> 214.0815695 | P37: =+SUM(P29:P36) -> 217.1304936 | Q37: =+SUM(Q29:Q36) -> 237.9898851 | R37: 242.5339259 | S37: 248.5292901 | T37: 253.4925299 | U37: 259.5070913 | V37: 0
B39: 7.5.1.2 - Actual and estimated opex applicable to EBSS
C40: $m, Actual | O40: $m, real June 2021
C41: Previous period | H41: Current regulatory control period | O41: Previous period | Q41: Current regulatory control period
C42: =PRCP_y1 -> 2011 | D42: =PRCP_y2 -> 2012 | E42: =PRCP_y3 -> 2013 | F42: =PRCP_y4 -> 2014 | G42: =PRCP_y5 -> 2015 | H42: =CRCP_y1 -> 2016 | I42: =CRCP_y2 -> 2017 | J42: =CRCP_y3 -> 2018 | K42: =CRCP_y4 -> 2019 | L42: =CRCP_y5 -> 2020 | M42: HY2021 | O42: =dms_PRCP_BaseYear -> 2014 | P42: =PRCP_y5 -> 2015 | Q42: =CRCP_y1 -> 2016 | R42: =CRCP_y2 -> 2017 | S42: =CRCP_y3 -> 2018 | T42: =CRCP_y4 -> 2019 | U42: =CRCP_y5 -> 2020 | V42: HY2021
B43: Total opex | F43: 194.755 | G43: 208.739 | H43: 240.511476 | I43: 216.729 | J43: 205.5786547 | K43: 197.367079 | O43: =+LOOKUP(dms_PRCP_BaseYear,C$42:G$42,C43:G43)/LOOKUP(dms_PRCP_BaseYear,C$14:N$14,C$18:N$18)*(1+LOOKUP(dms_PRCP_BaseYear,C$14:N$14,C$17:N$17))^0.5 -> 221.0539249 | P43: =+G43/I$18*(1+I$17)^0.5 -> 232.9588496 | Q43: =+H43/J$18*(1+J$17)^0.5 -> 264.237029 | R43: =+I43/K$18*(1+K$17)^0.5 -> 234.1459963 | S43: =+J43/L$18*(1+L$17)^0.5 -> 218.0726741 | T43: =+K43/M$18*(1+M$17)^0.5 -> 205.8125032 | U43: =+L43/N$18*(1+N$17)^0.5 -> 0 | V43: 0
B44: Approved excludable costs
B45: Debt raising costs | F45: -3.487 | G45: -2.368 | O45: =+LOOKUP(dms_PRCP_BaseYear,C$42:G$42,C45:G45)/LOOKUP(dms_PRCP_BaseYear,C$14:N$14,C$18:N$18)*(1+LOOKUP(dms_PRCP_BaseYear,C$14:N$14,C$17:N$17))^0.5 -> -3.95787033 | P45: =G45/I$18*(1+I$17)^0.5 -> -2.64275749 | Q45: 0 | R45: 0 | S45: 0 | T45: 0 | U45: =L45/N$18*(1+N$17)^0.5 -> 0 | V45: =M45/O$18*(1+O$17)^0.5 -> 0
B46: Self Insurance | F46: -1.345 | G46: -10.22 | O46: -1.526623342 | P46: -11.40581991 | Q46: 0 | R46: 0 | S46: 0 | T46: 0 | U46: 0 | V46: 0
B47: DMIA | F47: -0.06 | G47: -0.525 | H47: -0.077478 | I47: -0.260557 | J47: -0.227541 | K47: -0.227541 | O47: -0.06810215653 | P47: -0.5859154064 | Q47: -0.08512091346 | R47: -0.2814961466 | S47: -0.2413697784 | T47: -0.2372775795 | U47: 0 | V47: 0 | X47: =CONCATENATE(dms_TradingName," to nominate base year used to forecast opex (drop down menu)") -> AusNet (D) to nominate base year used to forecast opex (drop down menu)
B48: GSL | F48: -6.404 | G48: -4.405 | H48: -17.66765 | I48: -3.47664 | J48: -6.5871 | K48: -6.3 | O48: =+LOOKUP(dms_PRCP_BaseYear,C$42:G$42,C48:G48)/LOOKUP(dms_PRCP_BaseYear,C$14:N$14,C$18:N$18)*(1+LOOKUP(dms_PRCP_BaseYear,C$14:N$14,C$17:N$17))^0.5 -> -7.268770173 | P48: =G48/I$18*(1+I$17)^0.5 -> -4.916109267 | Q48: =H48/J$18*(1+J$17)^0.5 -> -19.41049726 | R48: =I48/K$18*(1+K$17)^0.5 -> -3.756033279 | S48: =J48/L$18*(1+L$17)^0.5 -> -6.987430253 | T48: =K48/M$18*(1+M$17)^0.5 -> -6.569579771 | U48: =L48/N$18*(1+N$17)^0.5 -> 0 | V48: =M48/O$18*(1+O$17)^0.5 -> 0
B49: Capitalisation policy changes | J49: -4.357494 | O49: 0 | P49: 0 | Q49: 0 | R49: 0 | S49: -4.622320202 | T49: 0 | U49: 0 | V49: 0
B50: Movements in provisions related to opex | H50: -0.4221814237 | I50: 0.5812692466 | J50: -0.493687 | O50: 0 | P50: 0 | Q50: -0.4638280341 | R50: 0.6279817969 | S50: -0.5236907713 | T50: 0 | U50: 0 | V50: 0
B51: Removal of Merits review expenditure | G51: -0.1412396158 | H51: -0.1489927267 | I51: -0.01566111477 | O51: =+LOOKUP(dms_PRCP_BaseYear,C$42:G$42,C51:G51)/LOOKUP(dms_PRCP_BaseYear,C$14:N$14,C$18:N$18)*(1+LOOKUP(dms_PRCP_BaseYear,C$14:N$14,C$17:N$17))^0.5 -> 0 | P51: =G51/I$18*(1+I$17)^0.5 -> -0.157627556 | Q51: =H51/J$18*(1+J$17)^0.5 -> -0.1636902991 | R51: =I51/K$18*(1+K$17)^0.5 -> -0.0169196892 | S51: =J51/L$18*(1+L$17)^0.5 -> 0 | T51: =K51/M$18*(1+M$17)^0.5 -> 0 | U51: =L51/N$18*(1+N$17)^0.5 -> 0 | V51: =M51/O$18*(1+O$17)^0.5 -> 0
B52: Other adjustments or exclusions required by the EBSS | F52: -2.973 | G52: -3.091 | O52: -3.374461856 | P52: -3.449646707 | Q52: 0 | R52: 0 | S52: 0 | T52: 0 | U52: 0 | V52: 0
B53: Actual opex for EBSS purposes | C53: =SUM(C43:C52) -> 0 | D53: 0 | E53: 0 | F53: 180.486 | G53: 187.9887604 | H53: =SUM(H43:H52) -> 222.1951738 | I53: =SUM(I43:I52) -> 213.5574111 | J53: =SUM(J43:J52) -> 193.9128327 | K53: =SUM(K43:K52) -> 190.839538 | O53: =O43+SUM(O45:O52) -> 204.858097 | P53: =P43+SUM(P45:P52) -> 209.8009732 | Q53: =Q43+SUM(Q45:Q52) -> 244.1138925 | R53: 230.719529 | S53: 205.6978631 | T53: =T43+SUM(T45:T52) -> 199.0056458 | U53: =(U37-(LOOKUP($W$53,$Q$28:$U$28,$Q$37:$U$37)-LOOKUP($W$53,$Q$42:$U$42,$Q$53:$U$53)))+W54 -> 216.6756643 | V53: =V43+SUM(V45:V52) -> 0 | W53: 2018
X54: Base year non-recurrent efficiency gain ($m)
O57: Incremental gain $m, real June 2021
P58: =(P37-P53)-(O37-O53) -> -1.893952073 | Q58: =IF(dms_EBSS_status="No",(Q37-Q53)-(P37-P53)+IF(O28=P28,P37-P53,O37-O53),(Q37-Q53)) -> -4.230055309 | R58: =(R37-R53)-(Q37-Q53) -> 17.93840428 | S58: =(S37-S53)-(R37-R53) -> 31.01703006 | T58: =(T37-T53)-(S37-S53) -> 11.65545715 | U58: =(U37-U53)-(T37-T53) -> -11.65545715 | V58: 0
O60: Incremental gain for 2020 & HY2021 true up $m, real June 2021
U61: =(U37-U54)-(LOOKUP($W$53,$Q$28:$U$28,$Q$37:$U$37)-LOOKUP($W$53,$Q$42:$U$42,$Q$53:$U$53))+W54 -> 216.6756643 | V61: =(V37-V53)-(U37-U54)/2 -> -129.7535456
O63: Carryover
Q64: Current regulatory control period | W64: Forthcoming regulatory control period
Q65: $m, real June 2021
Q66: =CRCP_y1 -> 2016 | R66: =CRCP_y2 -> 2017 | S66: =CRCP_y3 -> 2018 | T66: =CRCP_y4 -> 2019 | U66: =CRCP_y5 -> 2020 | V66: HY2021 | W66: 2021-22 | X66: 2022-23 | Y66: 2023-24 | Z66: 2024-25 | AA66: 2025-26 | AB66: Total
O67: =CRCP_y1 -> 2016 | R67: =$Q$58 -> -4.230055309 | S67: =$Q$58 -> -4.230055309 | T67: =$Q$58 -> -4.230055309 | U67: =$Q$58 -> -4.230055309 | V67: =$Q$58/2 -> -2.115027654 | W67: =$Q$58/2 -> -2.115027654
O68: =CRCP_y2 -> 2017 | S68: =$R$58 -> 17.93840428 | T68: =$R$58 -> 17.93840428 | U68: =$R$58 -> 17.93840428 | V68: =$R$58/2 -> 8.969202138 | W68: 17.93840428 | X68: =$R$58/2 -> 8.969202138
O69: =CRCP_y3 -> 2018 | T69: =$S$58 -> 31.01703006 | U69: =$S$58 -> 31.01703006 | V69: =$S$58/2 -> 15.50851503 | W69: =$S$58 -> 31.01703006 | X69: 31.01703006 | Y69: =$S$58/2 -> 15.50851503
O70: =CRCP_y4 -> 2019 | U70: =$T$58 -> 11.65545715 | V70: =$T$58/2 -> 5.827728575 | W70: =$T$58 -> 11.65545715 | X70: =$T$58 -> 11.65545715 | Y70: =$T$58 -> 11.65545715 | Z70: =$T$58/2 -> 5.827728575
O71: =CRCP_y5 -> 2020 | V71: =$U$58/2 -> -5.827728575 | W71: =$U$58 -> -11.65545715 | X71: -11.65545715 | Y71: -11.65545715 | Z71: -11.65545715 | AA71: =$U$58/2 -> -5.827728575
O72: HY2021 | W72: =$V$58 -> 0 | X72: =$V$58 -> 0 | Y72: 0 | Z72: 0 | AA72: 0
O73: Total Carryover Amount ($m, June 2021) | V73: =-P58/2 -> 0.9469760364 | W73: =+SUM(W67:W72) -> 46.84040668 | X73: =+SUM(X68:X72) -> 39.98623219 | Y73: =+SUM(Y69:Y72) -> 15.50851503 | Z73: =+SUM(Z70:Z72) -> -5.827728575 | AA73: =+SUM(AA71:AA72) -> -5.827728575 | AB73: =+SUM(W73:AA73) -> 90.67969675
O75: PTRM inputs ($m, June 2021) | V75: =V73 -> 0.9469760364 | W75: 46.84040668 | X75: 39.98623219 | Y75: 15.50851503 | Z75: -5.827728575 | AA75: -5.827728575 | AB75: =+SUM(W75:AA75) -> 90.67969675
Q77: =CRCP_y1 -> 2016 | R77: =CRCP_y2 -> 2017 | S77: =CRCP_y3 -> 2018 | T77: =CRCP_y4 -> 2019 | U77: =CRCP_y5 -> 2020 | V77: HY2021 | W77: 2021-22 | X77: 2022-23 | Y77: 2023-24 | Z77: 2024-25 | AA77: 2025-26 | AB77: 2026-27 | AC77: Total
O78: 2020 true up | AA78: =-U61/2 -> -108.3378322
O79: HY2021 true up | AB79: =V61 -> -129.7535456
B82: 7.5.2 - Proposed forecast opex for the EBSS for the forthcoming regulatory control period
C83: Forthcoming regulatory control period
C84: $m, real June 2021
C85: 2021-22 | D85: 2022-23 | E85: 2023-24 | F85: 2024-25 | G85: 2025-26
B86: Forecast opex | C86: 239.7509655 | D86: 243.3030431 | E86: 246.925988 | F86: 250.3738976 | G86: 253.0354708 | H86: =+SUM(C86:G86) -> 1233.389365
B87: Less excluded costs
B88: Debt raising costs | C88: 2.314766681 | D88: 2.346672786 | E88: 2.365974006 | F88: 2.383509914 | G88: 2.390714576 | H88: =+SUM(C88:G88) -> 11.80163796
B89: GSL | C89: 9.342692107 | D89: 9.342692107 | E89: 9.342692107 | F89: 9.342692107 | G89: 9.342692107 | H89: =+SUM(C89:G89) -> 46.71346054
B90: Innovation Program | C90: 0.2422758621 | D90: 0.2422758621 | E90: 0.2422758621 | F90: 0.2422758621 | G90: 0.2422758621 | H90: 1.21137931
H91: 0
B92: Adjusted forecast opex ($m, June 2021 | C92: =+C86-SUM(C88:C91) -> 227.8512308 | D92: 231.3714024 | E92: 234.975046 | F92: 238.4054197 | G92: 241.0597883 | H92: 1173.662887
